Cogmind - Beta 12 @@@ ROGUE MODE // 2023.08.07 @ 12:34:59 Player: Benkyo Result: Heading to fleet! Performance ------------- Evolutions (9) 4500 Regions Visited (36) 7200 Robots Destroyed (457) 2285 Value Destroyed (25579) 25579 Prototype IDs (314) 6280 Alien Tech Used (15) 3000 Bonus (62872) 62872 TOTAL SCORE: 111716 Bonus ------- Triggered Max Security 2000 High Alert Combat Kills 2709 Follower Combat Kills 2549 Network Hubs Disabled 200 Met Data Miner 300 Destroyed Z-Imprinter 1000 Triggered Deep Caves Wall 500 Exposed GOLEM Chamber 500 Met Zhirov 300 Built Enhanced Grunts 300 A7 Reached Mainframe 300 Met R17 at Cetus 500 Used Core Reset Matrix 3000 Met R17 at Research 2000 Integrated Exoskeleton 5000 Destroyed MAIN.C Guards 500 Met MAIN.C 5000 Destroyed MAIN.C Shell 5000 Destroyed MAIN.C 10000 Met Architect 300 Destroyed A8 300 Destroyed A6 400 Destroyed A5 500 Destroyed A4 700 Destroyed A3 800 Destroyed A2 1000 Destroyed Architect 15000 Win 3000 Friendly Fire -786 Cogmind --------- Core Integrity 1347/1600 Matter 280/300 Energy 838/840 System Corruption 0% Temperature Cool (0) Movement Walking (30) Location To Fleet Rendezvous Parts ------- > --- POWER (1) -------- Zero-point Reactor > --- PROPULSION (3) --- Sigix Exoskeleton > --- UTILITY (5) ------ Experimental Core Analyzer Quantum Capacitor AEGIS Remote Shield Architect God Chip A > --- WEAPON (4) ------- Sigix Shearcannon > --- INVENTORY (5) ---- Experimental Energy Well (600) Experimental System Purifier High-powered Transdimensional Reconstructor Null Cannon Peak State ------------ > --- POWER ------------ Zero-point Reactor > --- PROPULSION ------- Sigix Exoskeleton > --- UTILITY ---------- Experimental Core Analyzer Quantum Capacitor AEGIS Remote Shield Architect God Chip A > --- WEAPON ----------- Sigix Shearcannon A3's Sniper Rifle > --- INVENTORY -------- Experimental Energy Well Experimental System Purifier High-powered Transdimensional Reconstructor High-powered Transdimensional Reconstructor Null Cannon [Rating: 257] Favorites ----------- Power Assembled Flux Generator Engine Improved Deuterium Engine Power Core Light Nuclear Core Reactor Assembled Flux Generator Propulsion Assembled Alloy Leg Treads Centrium Heavy Treads Leg Assembled Alloy Leg Wheel Armored Huge Wheel Hover Unit Backup Propulsion III Utility Assembled Biocell Array Device Experimental Sensor Array Storage Assembled Biocell Array Processor Experimental Signal Interpreter Hackware Improved Hacking Suite Protection Assembled Alloy Armor Artifact Phase Redirector Weapon Assembled Focal Cannon Energy Gun Zionite Phaser-S Energy Cannon Assembled Focal Cannon Ballistic Gun Improved Assault Rifle Ballistic Cannon Gauss Cannon Launcher Proton Missile Launcher Impact Weapon Maul Slashing Weapon Sigix Broadsword Piercing Weapon CR-A16's Behemoth Slayer Build | -11 -10 -10 -9 -9 -9 -8 -8 -7 -7 -7 -7 -7 -6 -6 -6 -6 -6 -5 -5 -5 -5 -5 -4 -4 -4 -4 -4 -4 -3 -3 -2 -2 -2 -1 -1 -1 ------- Run | Jun Mat Min Mat Min Exi Min Mat Fac Low Low Zio Dee Pro Fac Low Low Dat Pro Fac Upp Upp Zhi Pro Fac Ext Cet Arc Hub Res Qua Res Tes Sec Acc Com Ac0 Slots Evolved 18 | . . . 2 . . . 2 2 . . . . . 2 . . . . 2 . . . . 2 . . . . 2 . 2 . . 2 . . Power 2 | . . . . . . . . 1 . . . . . . . . . . 1 . . . . . . . . . . . . . . . . . Propulsion 4 | . . . . . . . . . . . . . . . . . . . . . . . . 2 . . . . 2 . . . . . . . Utility 12 | . . . 2 . . . 2 1 . . . . . 2 . . . . 1 . . . . . . . . . . . 2 . . 2 . . Weapon . | . . . . . . . . . . . . . . . . . . . . . . . . . . . . . . . . . . . . . Parts Attached 548 | 7 4 1 23 5 4 1 28 3 13 23 15 41 6 7 8 12 1 7 6 23 17 5 10 21 10 3 7 9 9 28 33 55 69 5 16 13 Power 38 | 1 1 . 1 . 1 . 4 . 1 3 2 4 . . . . . . 1 . 2 . . . 1 1 . . . 2 6 4 1 . 2 . Engine 12 | 1 . . . . . . 4 . . 2 2 3 . . . . . . . . . . . . . . . . . . . . . . . . Core 6 | . 1 . 1 . 1 . . . 1 1 . 1 . . . . . . . . . . . . . . . . . . . . . . . . Reactor 20 | . . . . . . . . . . . . . . . . . . . 1 . 2 . . . 1 1 . . . 2 6 4 1 . 2 . Propulsion 24 | 2 . . 5 . . . 3 . 1 2 2 2 . . . . . . . . . . . 2 . 1 1 . 2 . 1 . . . . . Treads 7 | 2 . . . . . . . . . . . . . . . . . . . . . . . . . 1 1 . 2 . 1 . . . . . Leg 3 | . . . . . . . . . . 1 . . . . . . . . . . . . . 2 . . . . . . . . . . . . Wheel 14 | . . . 5 . . . 3 . 1 1 2 2 . . . . . . . . . . . . . . . . . . . . . . . . Hover . | . . . . . . . . . . . . . . . . . . . . . . . . . . . . . . . . . . . . . Flight . | . . . . . . . . . . . . . . . . . . . . . . . . . . . . . . . . . . . . . Utility 384 | 2 1 1 7 2 1 . 12 2 7 9 8 24 4 7 7 11 1 7 5 21 13 5 10 19 9 . 6 6 7 26 26 42 53 2 12 9 Device 303 | 1 . 1 2 1 . . 3 1 4 8 2 11 4 3 7 11 1 7 5 21 12 4 10 18 7 . 6 6 7 22 19 36 47 1 9 6 Storage 15 | 1 1 . . . 1 . 1 . . . 1 1 . 2 . . . . . . 1 1 . 1 . . . . . 1 . 2 . . 1 . Processor 14 | . . . 1 . . . 2 . . 1 1 . . 1 . . . . . . . . . . . . . . . . . 1 4 1 2 . Hackware 7 | . . . . . . . . . . . . . . 1 . . . . . . . . . . . . . . . . 2 . 2 . . 2 Protection 44 | . . . 4 1 . . 6 1 3 . 4 12 . . . . . . . . . . . . 2 . . . . 2 5 3 . . . 1 Artifact 1 | . . . . . . . . . . . . . . . . . . . . . . . . . . . . . . 1 . . . . . . Weapon 102 | 2 2 . 10 3 2 1 9 1 4 9 3 11 2 . 1 1 . . . 2 2 . . . . 1 . 3 . . . 9 15 3 2 4 Energy Gun 11 | 2 . . . . . . . . . . . 6 1 . . . . . . . . . . . . . . . . . . . . . . 2 Energy Cannon 27 | . . . . . . . . . . . . 1 . . . . . . . . . . . . . 1 . 1 . . . 8 12 3 1 . Ballistic Gun 20 | . 2 . 7 2 2 . 5 . . . . . . . . . . . . . 1 . . . . . . . . . . . . . . 1 Ballistic Cannon 16 | . . . . . . . 3 1 2 6 2 . . . . . . . . 1 . . . . . . . . . . . . . . . 1 Launcher 16 | . . . 1 1 . 1 1 . 2 1 . 4 . . . 1 . . . 1 . . . . . . . 2 . . . . . . 1 . Special Weapon . | . . . . . . . . . . . . . . . . . . . . . . . . . . . . . . . . . . . . . Impact Weapon 5 | . . . 2 . . . . . . 2 1 . . . . . . . . . . . . . . . . . . . . . . . . . Slashing Weapon 3 | . . . . . . . . . . . . . . . . . . . . . . . . . . . . . . . . 1 2 . . . Piercing Weapon 4 | . . . . . . . . . . . . . 1 . 1 . . . . . 1 . . . . . . . . . . . 1 . . . Special Melee Weapon . | . . . . . . . . . . . . . . . . . . . . . . . . . . . . . . . . . . . . . Unidentified Prototypes 28 | . . . 1 . . . . . . . . . . . . . . . 1 . . 1 . . . 1 . . 1 3 . 7 . . 5 8 Corrupted Parts 1 | . . . . . . . . . . . . . . . . . . . . . . . . . . . 1 . . . . . . . . . System Corruption 3 | . . . . . . . . . . . . . . . . . . . . . . . . . . . 3 . . . . . . . . . Parts Lost 36 | . . . 4 . . 2 4 1 1 4 . 13 1 1 . 1 . . . . . . . 1 1 . . 1 . . . . 1 . . . Power 6 | . . . . . . 1 . . . 2 . 3 . . . . . . . . . . . . . . . . . . . . . . . . Propulsion 4 | . . . 1 . . . . . 1 . . 2 . . . . . . . . . . . . . . . . . . . . . . . . Utility 22 | . . . 3 . . 1 3 1 . . . 8 . 1 . 1 . . . . . . . 1 1 . . 1 . . . . 1 . . . Weapon 4 | . . . . . . . 1 . . 2 . . 1 . . . . . . . . . . . . . . . . . . . . . . . Highest Loss Streak 4 | . . . 3 . . 2 2 1 1 3 . 4 1 1 . 1 . . . . . . . 1 1 . . 1 . . . . 1 . . . To Critical Strikes . | . . . . . . . . . . . . . . . . . . . . . . . . . . . . . . . . . . . . . Average Slot Usage (%) 84 | . 100 100 88 87 69 83 90 84 85 87 86 87 79 86 86 86 86 86 88 87 87 88 88 89 88 79 73 75 74 79 82 73 71 51 57 53 Engine 2 | . 13 . . . . . 8 7 7 3 13 11 . . . . . . . . . . . . . . . . . . . . . . . . Core 1 | . . 14 11 11 11 6 . . 1 6 . 1 . . . . . . . . . . . . . . . . . . . . . . . . Reactor 6 | . . . . . . . . . . . . . 7 6 6 6 6 6 11 11 10 11 11 10 10 10 10 10 9 9 10 13 12 8 8 7 Treads 3 | . 28 28 2 . . . . . . . . . . . . . . . . . . . . . . 3 9 10 15 19 16 13 11 . . . Leg 6 | . . . . . . . . . . . . . 9 13 13 13 13 13 11 10 11 11 11 21 21 12 . . 2 . . . 1 8 8 7 Wheel 2 | . . . 19 22 22 22 10 7 7 6 6 7 2 . . . . . . . . . . . . . . . . . . . . . . . Device 18 | . 14 14 12 6 11 11 16 23 22 19 9 11 15 25 20 20 20 20 23 22 23 23 23 22 25 21 21 23 19 22 27 17 17 8 15 15 Storage 9 | . 14 14 11 11 11 11 9 7 7 7 6 7 15 13 13 13 13 13 11 11 10 11 11 10 10 10 10 10 9 9 8 8 7 . . . Processor 8 | . . . 1 . . . 16 15 15 18 23 16 7 3 6 6 6 6 5 5 5 5 5 5 5 5 5 5 4 4 4 4 6 16 16 10 Hackware 2 | . . . . . . . . . . . . . . 2 6 6 6 6 5 5 5 5 5 3 . . . . . . . . . . . 3 Protection 6 | . . . 9 14 11 11 11 7 7 7 9 13 7 6 6 6 6 6 5 4 5 5 5 5 5 5 4 5 4 4 5 7 5 . . . Energy Cannon 7 | . . . . . . . . . . . . 1 11 13 12 12 13 13 11 10 10 11 11 10 9 10 10 9 7 9 8 7 7 9 8 7 Ballistic Gun 2 | . 17 28 21 21 3 17 8 . . . . . . . . . . . . . . . . . . . . . . . . . . . . . Ballistic Cannon 2 | . . . . . . . 9 15 14 14 12 4 . . . . . . . . . . . . . . . . . . . . . . . . Naked Turns . | . . . . . . . . . . . . . . . . . . . . . . . . . . . . . . . . . . . . . Heaviest Build 222 | 14 30 30 47 49 48 48 76 75 79 84 87 99 118 162 162 160 164 160 178 178 191 191 191 192 200 192 192 192 187 204 207 221 222 46 72 59 Greatest Support 240 | 40 40 40 40 24 24 24 28 28 28 28 28 28 60 80 60 60 60 60 60 60 60 60 60 136 116 116 160 160 230 230 240 240 240 60 60 60 Greatest Overweight (x) 34 | 2 . . 2 2 1 1 2 2 2 22 3 3 34 2 2 5 2 2 2 2 3 3 3 1 1 3 3 1 1 . . . 1 . 1 . Average Overweight (x) 1 | . . . . 1 1 1 1 2 2 2 2 2 2 1 1 2 2 2 2 2 1 2 2 1 1 2 1 1 . . . . . . . . Largest Inventory Capacity 25 | 8 15 15 15 15 15 15 20 20 20 20 20 20 20 25 25 25 25 25 25 25 25 25 25 25 25 25 25 25 25 25 25 25 25 5 5 5 Average Capacity 21 | 7 14 15 15 15 15 15 19 20 20 20 19 19 20 20 25 25 25 25 25 25 24 25 25 24 25 25 25 25 25 25 25 25 22 5 5 5 Most Carried 25 | 8 15 15 15 15 15 13 20 20 20 20 20 20 20 25 25 25 24 25 25 25 25 25 25 25 25 25 25 25 25 25 25 25 25 4 5 5 Average Carried 21 | 5 13 14 14 14 14 13 19 19 18 19 18 18 19 19 24 24 24 24 24 24 24 24 25 23 24 24 24 24 24 24 24 24 22 3 4 4 Final Capacity 25 | 8 15 15 15 15 15 15 20 20 20 20 20 20 20 25 25 25 25 25 25 25 25 25 25 25 25 25 25 25 25 25 25 25 5 5 5 5 Final Carried 25 | 8 15 15 12 15 13 13 20 20 19 20 20 20 20 25 25 24 24 24 25 25 25 25 25 24 25 25 25 25 25 24 25 24 5 4 5 4 Class Distribution -------------------- 45% | Golem 28% | Mutant 8% | Skirmisher 4% | Commander-Golem 3% | Alien-Sigix Dominant Class ---------------- Mutant | -10/Materials Mutant | -10/Mines Mutant | -9/Materials Mutant | -9/Mines Mutant | -9/Exiles Mutant | -8/Mines Mutant | -8/Materials Skirmisher | -7/Factory Skirmisher | -7/Lower Caves Skirmisher | -7/Lower Caves Mutant | -7/Zion Mutant | -7/Deep Caves Golem | -6/Proximity Caves Golem | -6/Factory Golem | -6/Lower Caves Golem | -6/Lower Caves Golem | -6/Data Miner Golem | -5/Proximity Caves Golem | -5/Factory Golem | -5/Upper Caves Golem | -5/Upper Caves Golem | -5/Zhirov Golem | -4/Proximity Caves Scavenger-Golem | -4/Factory Scavenger-Golem | -4/Extension Golem | -4/Cetus Commander-Golem | -4/Archives Golem | -4/Hub_04(d) Golem | -3/Research Mutant | -3/Quarantine Scavenger-Mutant | -2/Research Mutant | -2/Testing Alien-Mutant | -2/Section 7 Alien-Sigix | -1/Access Alien-Sigix | -1/Command Wizard-Sigix | -1/Access_0 Resources | -11 -10 -10 -9 -9 -9 -8 -8 -7 -7 -7 -7 -7 -6 -6 -6 -6 -6 -5 -5 -5 -5 -5 -4 -4 -4 -4 -4 -4 -3 -3 -2 -2 -2 -1 -1 -1 ----------- Run | Jun Mat Min Mat Min Exi Min Mat Fac Low Low Zio Dee Pro Fac Low Low Dat Pro Fac Upp Upp Zhi Pro Fac Ext Cet Arc Hub Res Qua Res Tes Sec Acc Com Ac0 Matter Collected 10786 | 270 400 56 937 145 . 51 1668 . 600 700 230 1035 106 40 350 155 . 80 20 305 190 35 125 193 154 40 64 203 102 304 236 714 917 51 150 160 Remotely 257 | . . . . . . . . . . . . . . . . . . . . . . . . . . . . . . . 16 . 241 . . . Salvage Created 27041 | 145 457 12 1676 145 . 347 1625 . 309 642 . 1123 611 471 238 529 . 728 597 1246 941 35 359 987 702 692 101 513 207 958 720 985 2005 110 2587 4238 Parts 1295 | 6 38 2 110 12 . 21 95 . 16 18 . 29 32 12 11 32 . 25 27 49 34 . 13 49 36 26 9 26 12 53 23 66 115 4 49 245 Haulers Intercepted 8 | . . . 4 . . . 3 . . . . . . . . . . . 1 . . . . . . . . . . . . . . . . . Recyclers Shooed 6 | . . . . . . 1 1 . . . . . . 1 . . . . . . . . . 2 . . . . 1 . . . . . . . Parts Field Recycled . | . . . . . . . . . . . . . . . . . . . . . . . . . . . . . . . . . . . . . Retrieved Matter . | . . . . . . . . . . . . . . . . . . . . . . . . . . . . . . . . . . . . . Parts Self-Destructed 232 | . . . . . . . . . 16 18 3 . 32 . 9 31 . 35 . 45 30 . 13 . . . . . . . . . . . . . Prevented 4 | . . . . . . . . . . 4 . . . . . . . . . . . . . . . . . . . . . . . . . . Kills | -11 -10 -10 -9 -9 -9 -8 -8 -7 -7 -7 -7 -7 -6 -6 -6 -6 -6 -5 -5 -5 -5 -5 -4 -4 -4 -4 -4 -4 -3 -3 -2 -2 -2 -1 -1 -1 ------- Run | Jun Mat Min Mat Min Exi Min Mat Fac Low Low Zio Dee Pro Fac Low Low Dat Pro Fac Upp Upp Zhi Pro Fac Ext Cet Arc Hub Res Qua Res Tes Sec Acc Com Ac0 Combat Hostiles Destroyed 417 | . 9 1 38 5 . 5 28 . 15 12 . 50 11 7 5 12 . 11 7 26 15 . 10 9 9 11 . 10 1 13 8 8 21 1 16 43 Guns 79 | . 9 1 38 3 . 1 16 . . . . 4 7 . . . . . . . . . . . . . . . . . . . . . . . Cannons 271 | . . . . . . . 10 . 11 12 . 8 3 7 4 8 . 11 7 25 14 . 10 9 9 11 . 6 1 13 7 8 17 1 16 43 AOE 58 | . . . . 2 . 4 2 . 4 . . 36 . . . 4 . . . 1 . . . . . . . 4 . . 1 . . . . . Classes Destroyed 28 | 2 5 . 4 . . . . . 1 . . 4 1 . 1 . . 1 . 1 1 . 1 . . . . 1 . . . 2 3 . . . Worker 11 | . 1 . . . . 1 2 . . . . . . . . . . . . . . . . . . . . 2 2 . 1 2 . . . . Builder 13 | . 3 . . . . 1 5 . . . . . . . . . . . . . . . . . 1 . . 1 . . . . 1 1 . . Tunneler 2 | 2 . . . . . . . . . . . . . . . . . . . . . . . . . . . . . . . . . . . . Hauler 8 | . . . 4 . . . 3 . . . . . . . . . . . 1 . . . . . . . . . . . . . . . . . Recycler 11 | 1 . . 1 . . 4 1 . . . . . . 1 . . . . . . . . . 3 . . . . . . . . . . . . Minesweeper 1 | . . . . . . . . . . . . . . . . . . . . . 1 . . . . . . . . . . . . . . . Mechanic 1 | . . . . . . . . . . . . . . . . . . . . . . . . . . . . . . . . 1 . . . . Operator 7 | . . . 1 . . . 1 . . . . . . . . . . . . . . . . 1 . . 3 . . . . . 1 . . . Drone 2 | . . . . . . . . . . . . . . . . . . . . . . . 2 . . . . . . . . . . . . . Watcher 25 | . 3 . 3 . . . 5 . . . . . . . . . . . 1 . . . . 2 . . . . 2 2 1 3 3 . . . Swarmer 66 | . 3 1 11 2 . 2 3 . 8 1 . . 3 3 3 3 . . . 10 4 . 5 . . 3 . . . . . . 1 . . . Grunt 127 | . 6 . 17 3 . 2 18 . 5 8 . . 6 3 . 7 . 8 4 10 7 . 2 1 6 2 . . . 1 4 . 7 . . . Brawler 8 | . . . 1 . . 1 1 . 1 2 . . . . . . . 1 . . 1 . . . . . . . . . . . . . . . Duelist 2 | . . . . . . . . . 1 . . . . 1 . . . . . . . . . . . . . . . . . . . . . . Protector 1 | . . . . . . . . . . . . . . . . . . . . . . . . . . . . 1 . . . . . . . . Researcher 3 | . . . . . . . . . . . . . . . . . . . . . . . . . . . . . . . . 1 2 . . . Sentry 32 | . . . 9 . . . 6 . . 1 . . 1 . . 1 . 1 . 2 2 . 1 . 2 . . . 1 . 2 . 1 1 1 . Hunter 19 | . . . . . . . . . . . . . . . . . . 1 . 3 . . . 4 . 2 . 2 . 4 . 3 . . . . Programmer 35 | . . . . . . . . . . . . . . . 1 1 . . 2 . . . . 4 . . . 4 . 8 2 5 6 . 2 . Heavy 1 | . . . . . . . . . . . . . . . . . . . . . . . . . . . . . . . . . 1 . . . Behemoth 4 | . . . . . . . . . . . . . 1 . 1 . . . . . 1 . . . . . . . . . . . 1 . . . Cetus Guard 4 | . . . . . . . . . . . . . . . . . . . . . . . . . . 4 . . . . . . . . . . M Guard 2 | . . . . . . . . . . . . . . . . . . . . . . . . . . . . . . . . . . . 2 . M Shell/Atk 4 | . . . . . . . . . . . . . . . . . . . . . . . . . . . . . . . . . . . 4 . M Shell/Def 3 | . . . . . . . . . . . . . . . . . . . . . . . . . . . . . . . . . . . 3 . Enhanced Grunt 27 | . . . . . . . . . . . . . . . . . . . 1 . . . . . . . . . . . . . . . . 26 Enhanced Sentry 4 | . . . . . . . . . . . . . . . . . . . . . . . . . . . . . . . . . . . . 4 Enhanced Hunter 6 | . . . . . . . . . . . . . . . . . . . . . . . . . . . . . . . . . . . . 6 Lightning 3 | . . . . . . . . . . . . . . . . . . . . . . . . . . . . 3 . . . . . . . . Combat Programmer 2 | . . . . . . . . . . . . . . . . . . . . . . . . . . . . . . . . . . . 2 . Striker 2 | . . . . . . . . . . . . . . . . . . . . . . . . . . . . . . . . . 2 . . . Executioner 2 | . . . . . . . . . . . . . . . . . . . . . . . . . . . . . . . . . 2 . . . Z-Technician 4 | . . . . . . . . . . . . 4 . . . . . . . . . . . . . . . . . . . . . . . . Z-Light 7 | . . . . . . . . . . . . 7 . . . . . . . . . . . . . . . . . . . . . . . . Decomposer 5 | . . . . . . . . . . . . . . . 3 . . . . . 2 . . . . . . . . . . . . . . . Packrat 4 | . . . . . . . . . . 4 . . . . . . . . . . . . . . . . . . . . . . . . . . Assembler 2 | . . . . . . . . . . . . 2 . . . . . . . . . . . . . . . . . . . . . . . . Assembled 40 | . . . . . . . . . . . . 39 . . . . . . . . . . . . . . . . . . . . . . 1 . Golem 4 | . . . . . . . . . . . . 4 . . . . . . . . . . . . . . . . . . . . . . . . Thug 3 | . . . . . . . . . . . . 1 . . . . . . . . . . . . 1 1 . . . . . . . . . . Savage 1 | . . . . . . . . . . . . 1 . . . . . . . . . . . . . . . . . . . . . . . . Mutant 1 | . . . . . . . . . . . . . . . . . . . . 1 . . . . . . . . . . . . . . . . Best Kill Streak 40 | 3 4 1 8 3 . 11 5 . 4 4 . 40 3 8 3 4 . 3 4 6 4 . 5 3 4 6 2 11 2 3 3 4 5 2 7 12 Combat Bots Only 38 | . 3 1 7 3 . 5 5 . 4 4 . 38 3 7 3 4 . 3 3 6 4 . 5 3 3 6 . 8 1 3 2 2 4 1 7 12 Max Kills in Single Turn 14 | 1 1 1 2 1 . 3 3 . 2 1 . 14 1 2 1 3 . 1 1 2 2 . 2 1 2 2 1 3 1 1 1 1 1 1 2 2 Gunslinging 1 | . . . 1 . . . . . . . . . . . . . . . . . . . . . . . . . . . . . . . . . Exploded 14 | . . . . 1 . 1 1 . 2 . . 14 . . . 3 . . . 1 . . . . . . . 2 . . 1 . . . . . Melee . | . . . . . . . . . . . . . . . . . . . . . . . . . . . . . . . . . . . . . Uniques/NPCs Destroyed 10 | . . . . . . . . . . . . 1 . . . . . . . . . . . . . . . . . . . . . . 2 7 Z-Imprinter (-7/Deep Caves) MAIN.C Shell (-1/Command) MAIN.C (-1/Command) A8 (-1/Access_0) A6 (-1/Access_0) A5 (-1/Access_0) A2 (-1/Access_0) Architect (-1/Access_0) A4 (-1/Access_0) A3 (-1/Access_0) Combat | -11 -10 -10 -9 -9 -9 -8 -8 -7 -7 -7 -7 -7 -6 -6 -6 -6 -6 -5 -5 -5 -5 -5 -4 -4 -4 -4 -4 -4 -3 -3 -2 -2 -2 -1 -1 -1 -------- Run | Jun Mat Min Mat Min Exi Min Mat Fac Low Low Zio Dee Pro Fac Low Low Dat Pro Fac Upp Upp Zhi Pro Fac Ext Cet Arc Hub Res Qua Res Tes Sec Acc Com Ac0 Damage Taken 16458 | . 431 72 1901 67 . 211 1543 297 658 626 . 2422 888 490 271 414 . 82 192 500 377 . 39 367 347 97 11 604 46 407 215 435 917 52 673 806 Core 2408 | . 104 . 345 . . 26 285 . 90 110 . 278 180 90 . 59 . . . 31 99 . . 42 8 19 . 72 22 2 2 21 49 17 209 248 Absorbed by Shields 4160 | . . . . . . . . . . . . . . . . . . . . . 90 . 44 260 365 101 12 121 . 311 228 436 956 . 489 747 Reduced by Siege Mode 57 | . . . . . . . . . . . . . . . . . . . . . . . . . . . . . . 5 3 . 49 . . . Redirected to Shielding 360 | . . . . . . . 10 . . . . 350 . . . . . . . . . . . . . . . . . . . . . . . . Regen/Repaired (Parts) 685 | . . . 83 . . . 72 . . . 82 . . . . . . . . . . . . . . . . . . . . 195 253 . . . Core Remaining (%) 68 | 100 . 58 . . . 7 48 . . . . . 6 . . . . 82 . . . . 87 . . . . 87 . 98 . . 95 . . 84 Volleys Fired 1602 | 5 51 5 124 6 . 7 145 1 37 44 . 121 37 19 20 20 . 28 26 71 60 1 32 41 34 42 23 43 17 97 58 87 151 15 47 87 Largest 2 | 2 2 2 2 2 . 2 2 1 2 2 . 2 2 2 2 2 . 2 2 2 2 2 2 2 2 2 1 1 1 1 1 1 1 1 1 1 Hottest 180 | 90 90 40 46 51 . 58 96 48 96 101 . 120 120 50 50 68 . 50 50 68 50 50 50 50 50 50 25 88 25 25 25 50 180 180 180 180 Shots Fired 2379 | 10 102 10 247 10 . 11 282 1 68 80 . 156 65 34 36 37 . 56 52 133 115 2 63 73 62 48 23 44 17 97 58 87 151 15 47 87 Gun 682 | 10 102 10 246 8 . 4 211 . . . . 63 28 . . . . . . . . . . . . . . . . . . . . . . . Cannon 1647 | . . . . . . . 67 1 61 80 . 73 37 34 36 35 . 56 52 130 115 2 63 73 62 48 23 40 17 97 58 87 151 15 47 87 Launcher 50 | . . . 1 2 . 7 4 . 7 . . 20 . . . 2 . . . 3 . . . . . . . 4 . . . . . . . . Special . | . . . . . . . . . . . . . . . . . . . . . . . . . . . . . . . . . . . . . Kinetic 804 | . 51 10 246 8 . 4 278 1 61 80 . 65 . . . . . . . . . . . . . . . . . . . . . . . . Thermal 1281 | 10 51 . . . . . . . . . . . 37 34 36 35 . 56 52 130 115 2 63 73 62 48 23 37 17 97 58 87 144 11 3 . Explosive 42 | . . . 1 2 . 7 4 . 7 . . 12 . . . 2 . . . 3 . . . . . . . 4 . . . . . . . . Electromagnetic 19 | . . . . . . . . . . . . 16 . . . . . . . . . . . . . . . 3 . . . . . . . . Slashing 142 | . . . . . . . . . . . . . . . . . . . . . . . . . . . . . . . . . 7 4 44 87 Phasic 91 | . . . . . . . . . . . . 63 28 . . . . . . . . . . . . . . . . . . . . . . . Robot Hit Streak 49 | 5 6 4 20 6 . 7 10 . 4 12 . 12 11 9 12 13 . 14 13 23 25 8 18 19 16 15 12 17 9 24 11 23 49 7 29 18 Robot Miss Streak 8 | 2 6 1 5 1 . 2 4 . 3 6 . 7 1 1 . 2 . 1 2 2 2 . 2 1 2 1 1 4 2 1 2 3 8 4 5 7 Penetration Max 1 | . . . . 1 . . 1 . . 1 . . . . . . . . . . . . . . . . . . . . . . . . 1 1 Secondary Targets 11 | . 3 . 5 1 . . 1 . . . . . 1 . . . . . . . . . . . . . . . . . . . . . . . Max Gunslinging Chain 1 | . 1 . 1 1 . . 1 . . . . . 1 . . . . . . . . . . . . . . . . . . . . . . . Capacitor 636 | . . . . . . . . . . . . . . . . . . . . . . . . . . 38 23 36 17 97 58 87 131 15 47 87 Shots Hit Robots 1366 | 6 48 7 159 8 . 7 184 . 32 45 . 67 31 21 9 21 . 32 37 59 53 1 23 38 33 37 18 28 9 59 28 55 88 4 41 78 Core Hits 1060 | 4 24 2 65 6 . 20 84 . 21 21 . 104 17 11 6 17 . 18 16 34 20 1 11 22 20 25 8 22 6 22 16 24 42 4 113 234 Critical Kills 2 | . . . . . . . 1 . . . . . . . . . . . . . . . . . . . . . . . . . 1 . . . Critical Parts Destroyed 1 | . . . . . . . 1 . . . . . . . . . . . . . . . . . . . . . . . . . . . . . Critical Strikes 48 | 2 1 . . . . . 10 . 2 8 . 7 3 . . . . . . . . . . . . . . . . . . . 1 . 3 11 Burn 3 | 2 1 . . . . . . . . . . . . . . . . . . . . . . . . . . . . . . . . . . . Meltdown 1 | . . . . . . . . . . . . . . . . . . . . . . . . . . . . . . . . . 1 . . . Destroy 2 | . . . . . . . 2 . . . . . . . . . . . . . . . . . . . . . . . . . . . . . Blast 25 | . . . . . . . 8 . 2 8 . 7 . . . . . . . . . . . . . . . . . . . . . . . . Sever 14 | . . . . . . . . . . . . . . . . . . . . . . . . . . . . . . . . . . . 3 11 Impale 1 | . . . . . . . . . . . . . 1 . . . . . . . . . . . . . . . . . . . . . . . Intensify 2 | . . . . . . . . . . . . . 2 . . . . . . . . . . . . . . . . . . . . . . . Melee Attacks 67 | . . . 8 . . . . . . 10 33 . 9 . 2 . . . . . 1 . . . . . . . . . . 1 3 . . . Impact 51 | . . . 8 . . . . . . 10 33 . . . . . . . . . . . . . . . . . . . . . . . . . Slashing 3 | . . . . . . . . . . . . . . . . . . . . . . . . . . . . . . . . 1 2 . . . Piercing 13 | . . . . . . . . . . . . . 9 . 2 . . . . . 1 . . . . . . . . . . . 1 . . . Sneak Attacks 3 | . . . . . . . . . . . . . . . . . . . . . . . . . . . . . . . . 1 2 . . . Combat Hostiles . | . . . . . . . . . . . . . . . . . . . . . . . . . . . . . . . . . . . . . Follow-up Attacks . | . . . . . . . . . . . . . . . . . . . . . . . . . . . . . . . . . . . . . Damage Inflicted 82309 | 70 682 90 2648 299 . 974 3941 . 1316 1346 . 5685 871 1112 390 1476 . 1644 1539 3481 2357 52 814 2035 1602 1734 760 2269 397 2804 1331 2902 4232 721 11905 18830 Guns 7213 | 70 682 90 2481 166 . 39 2398 . . . . 660 627 . . . . . . . . . . . . . . . . . . . . . . . Cannons 66051 | . . . . . . . 1201 . 851 1346 . 1062 179 1112 390 1047 . 1644 1539 3163 2357 52 814 1929 1602 1734 760 1073 397 2804 1246 2410 3883 721 11905 18830 Explosions 8236 | . . . . 133 . 935 342 . 465 . . 3963 . . . 429 . . . 318 . . . 106 . . . 1196 . . 85 264 . . . . Melee 747 | . . . 167 . . . . . . . . . 65 . . . . . . . . . . . . . . . . . . 228 287 . . . Ramming 62 | . . . . . . . . . . . . . . . . . . . . . . . . . . . . . . . . . 62 . . . Kinetic 9911 | . 367 90 2481 166 . 39 3599 . 851 1346 . 972 . . . . . . . . . . . . . . . . . . . . . . . . Thermal 30140 | 70 315 . . . . . . . . . . 9 179 1112 390 1047 . 1644 1539 3163 2357 52 814 2035 1602 1734 760 1052 397 2804 1246 2410 3409 . . . Explosive 7539 | . . . . 133 . 935 342 . 465 . . 3698 . . . 429 . . . 318 . . . . . . . 1134 . . 85 . . . . . Electromagnetic 693 | . . . . . . . . . . . . 346 . . . . . . . . . . . . . . . 83 . . . 264 . . . . Impact 167 | . . . 167 . . . . . . . . . . . . . . . . . . . . . . . . . . . . . . . . . Slashing 32445 | . . . . . . . . . . . . . . . . . . . . . . . . . . . . . . . . 228 761 721 11905 18830 Piercing 65 | . . . . . . . . . . . . . 65 . . . . . . . . . . . . . . . . . . . . . . . Phasic 1287 | . . . . . . . . . . . . 660 627 . . . . . . . . . . . . . . . . . . . . . . . Highest Corruption 10 | . 1 1 4 4 4 4 . . . . . 1 1 . . . . . . . . . . 2 2 2 5 10 . 1 . 1 1 . 1 . Average Corruption 1 | . 1 1 4 4 4 4 . . . . . 1 1 . . . . . . . . . . 1 2 2 3 7 . 1 . 1 1 . 1 . Corruption Purged 12 | . . . . . . . . . . . . . . . . . . . . . . . . . . . 5 1 . 2 . 1 2 . 1 . Corruption Blocked . | . . . . . . . . . . . . . . . . . . . . . . . . . . . . . . . . . . . . . Effects 88 | . 3 8 1 10 3 . . . . . . 7 15 . . . . . . . . . . 8 10 6 2 4 . 4 . 2 4 . 1 . Message Errors 23 | . 2 1 1 4 1 . . . . . . 2 4 . . . . . . . . . . 1 4 2 . . . . . 1 . . . . Matter Fused 24 | . . 2 . 2 . . . . . . . 1 4 . . . . . . . . . . 4 2 . 2 1 . 2 . . 4 . . . Heat Flow Errors 10 | . . 1 . 2 . . . . . . . 1 . . . . . . . . . . . 2 1 1 . . . 1 . . . . 1 . Energy Discharges 11 | . . 3 . 1 . . . . . . . 1 1 . . . . . . . . . . 1 2 . . . . 1 . 1 . . . . Parts Rejected 1 | . . . . . . . . . . . . . 1 . . . . . . . . . . . . . . . . . . . . . . . Parts Fused 1 | . . . . . . . . . . . . . . . . . . . . . . . . . . 1 . . . . . . . . . . Data Loss (minor) 8 | . . . . 1 . . . . . . . 2 3 . . . . . . . . . . . . 1 . 1 . . . . . . . . Data Loss (major) 4 | . . . . . 2 . . . . . . . 2 . . . . . . . . . . . . . . . . . . . . . . . Misfires 3 | . 1 . . . . . . . . . . . . . . . . . . . . . . . . 1 . 1 . . . . . . . . Alerts 2 | . . 1 . . . . . . . . . . . . . . . . . . . . . . . . . 1 . . . . . . . . Weapon Failures 1 | . . . . . . . . . . . . . . . . . . . . . . . . . 1 . . . . . . . . . . . Overload Shots 6 | . . . . . . . . . . . . . . . . . . . . . . . . . . . . . . . . . 3 . 3 . Effects 1 | . . . . . . . . . . . . . . . . . . . . . . . . . . . . . . . . . 1 . . . Energy Bleed 1 | . . . . . . . . . . . . . . . . . . . . . . . . . . . . . . . . . 1 . . . Overflow Damage 2107 | . . . . 5 . 37 52 . 66 64 . 345 . 43 58 38 . 21 59 103 117 . 29 109 31 44 31 77 13 226 45 151 67 57 91 128 Projectiles 1630 | . . . . . . . 33 . 51 64 . 13 . 43 58 38 . 21 59 103 117 . 29 83 31 44 31 49 13 226 45 136 67 57 91 128 Explosions 477 | . . . . 5 . 37 19 . 15 . . 332 . . . . . . . . . . . 26 . . . 28 . . . 15 . . . . Melee . | . . . . . . . . . . . . . . . . . . . . . . . . . . . . . . . . . . . . . Knockbacks 21 | . . . . . . . 10 . 7 4 . . . . . . . . . . . . . . . . . . . . . . . . . . Impact . | . . . . . . . . . . . . . . . . . . . . . . . . . . . . . . . . . . . . . Kinetic 20 | . . . . . . . 9 . 7 4 . . . . . . . . . . . . . . . . . . . . . . . . . . Secondary 1 | . . . . . . . 1 . . . . . . . . . . . . . . . . . . . . . . . . . . . . . Self-Inflicted Damage 382 | . 64 . . 22 . 2 21 . 50 . . 186 . . . . . . . . . . . 37 . . . . . . . . . . . . Shots 14 | . 1 . . 1 . 1 1 . 2 . . 7 . . . . . . . . . . . 1 . . . . . . . . . . . . Rammed . | . . . . . . . . . . . . . . . . . . . . . . . . . . . . . . . . . . . . . Targets Rammed 2 | . . . . . . . . . . . . . . . . . . . . . . . . . . . . . . . . . 2 . . . Kicked 2 | . . . . . . . . . . . . . . . . . . . . . . . . . . . . . . . . . 2 . . . Crushed . | . . . . . . . . . . . . . . . . . . . . . . . . . . . . . . . . . . . . . Highest Temperature 473 | 60 339 193 183 237 . 55 386 25 329 421 . 473 315 . . 37 . . . . 2 . . 151 152 61 . 90 . 155 . 93 181 108 108 88 Average Temperature 75 | 28 103 87 48 72 . 27 77 11 103 104 . 72 129 . . 18 . . . . 2 . . 79 92 39 . 46 . 86 . 41 69 69 84 14 Received Heat Transfer 3893 | . 153 27 684 21 . 81 819 . 171 315 . 369 240 171 36 105 . 18 72 45 141 . . 6 66 . . . 9 . 49 12 113 . 57 113 Effects 13 | . 2 . . . . . 1 . 2 2 . 3 3 . . . . . . . . . . . . . . . . . . . . . . . Shutdowns 3 | . . . . . . . . . . 1 . 2 . . . . . . . . . . . . . . . . . . . . . . . . Energy Bleed 4 | . . . . . . . 1 . 2 1 . . . . . . . . . . . . . . . . . . . . . . . . . . Interference 5 | . 2 . . . . . . . . . . . 3 . . . . . . . . . . . . . . . . . . . . . . . Damage (minor) 1 | . . . . . . . . . . . . 1 . . . . . . . . . . . . . . . . . . . . . . . . Siege Activations 19 | . . . . . . . . . . . . . . . . . . . . . . . . . . . . . . 7 3 3 6 . . . Total Turns 293 | . . . . . . . . . . . . . . . . . . . . . . . . . . . . . . 174 17 28 74 . . . Longest Duration 128 | . . . . . . . . . . . . . . . . . . . . . . . . . . . . . . 128 11 18 36 . . . Robots Corrupted 2 | . . . . . . . . . . . . 2 . . . . . . . . . . . . . . . . . . . . . . . . Combat Hostiles 2 | . . . . . . . . . . . . 2 . . . . . . . . . . . . . . . . . . . . . . . . Parts Fried 3 | . . . . . . . . . . . . . . . . . . . . . . . . . . . . 1 . . . 2 . . . . Impact Corruptions . | . . . . . . . . . . . . . . . . . . . . . . . . . . . . . . . . . . . . . Robots Melted 3 | . . . . . . . . . . . . . . . . . . . . . . . . . . . . . . . . . 3 . . . Combat Hostiles 3 | . . . . . . . . . . . . . . . . . . . . . . . . . . . . . . . . . 3 . . . Parts Melted 29 | . 2 . . . . . . . . . . . . . . . . . 1 1 . . . 2 2 2 . 1 . 3 5 2 8 . . . Heat Transferred 18700 | 334 917 . . . . . . . . . . 50 100 600 200 600 . 900 900 1750 1250 25 500 1050 912 975 437 497 225 1400 725 1430 2923 . . . Parts Sabotaged . | . . . . . . . . . . . . . . . . . . . . . . . . . . . . . . . . . . . . . Parts Stolen . | . . . . . . . . . . . . . . . . . . . . . . . . . . . . . . . . . . . . . Parts Stripped . | . . . . . . . . . . . . . . . . . . . . . . . . . . . . . . . . . . . . . Power Chain Reactions 2 | . . . . . . . . . . . . 1 . . . . . . . . . . . . . . . 1 . . . . . . . . Missiles Intercepted . | . . . . . . . . . . . . . . . . . . . . . . . . . . . . . . . . . . . . . Alert | -11 -10 -10 -9 -9 -9 -8 -8 -7 -7 -7 -7 -7 -6 -6 -6 -6 -6 -5 -5 -5 -5 -5 -4 -4 -4 -4 -4 -4 -3 -3 -2 -2 -2 -1 -1 -1 ------- Run | Jun Mat Min Mat Min Exi Min Mat Fac Low Low Zio Dee Pro Fac Low Low Dat Pro Fac Upp Upp Zhi Pro Fac Ext Cet Arc Hub Res Qua Res Tes Sec Acc Com Ac0 Peak Influence 1874 | 15 219 97 998 507 . 184 359 160 . . . . . 161 . . . . 305 . . . . 426 351 802 534 539 388 244 503 368 1874 1698 1404 . Initial 1124 | . 9 41 . 388 . . 67 144 . . . . . . . . . . 31 . . . . 352 79 96 240 . 282 131 59 157 119 1124 1100 . Average 237 | 6 90 41 438 422 . 58 202 155 . . . . . 68 . . . . 202 . . . . 287 168 461 208 291 300 113 242 196 360 1195 1263 . Maximum Alert Level 5 | . 1 . 3 2 . . 1 . . . . . . . . . . . 1 . . . . 2 1 3 2 2 1 1 2 1 5 5 4 . Low Security (%) 49 | 100 85 100 29 . . 100 52 100 . . . . . 100 . . . . 39 . . . . 18 67 13 59 15 1 84 38 61 14 . . . Level 1 32 | . 14 . 19 41 . . 47 . . . . . . . . . . . 60 . . . . 70 32 43 26 63 98 15 43 38 59 . . . Level 2 8 | . . . 26 58 . . . . . . . . . . . . . . . . . . . 10 . 17 13 20 . . 17 . 24 . . . Level 3 2 | . . . 24 . . . . . . . . . . . . . . . . . . . . . . 25 . . . . . . . . . . Level 4 7 | . . . . . . . . . . . . . . . . . . . . . . . . . . . . . . . . . . 87 100 . Level 5 . | . . . . . . . . . . . . . . . . . . . . . . . . . . . . . . . . . . . . . High Security . | . . . . . . . . . . . . . . . . . . . . . . . . . . . . . . . . . . . . . Max Security . | . . . . . . . . . . . . . . . . . . . . . . . . . . . . . . . . . 2 12 . . Squads Dispatched 61 | . 4 . 7 1 . . 3 1 . . . . . 2 . . . . 2 . 1 . . 3 2 . . 2 3 5 5 3 11 6 . . Investigation 13 | . 2 . 4 1 . . 1 . . . . . . . . . . . . . 1 . . . . . . . 2 . 1 . 1 . . . Extermination 17 | . . . . . . . . 1 . . . . . 1 . . . . 1 . . . . 3 . . . 1 . 3 2 2 3 . . . Reinforcement 18 | . 2 . 2 . . . 2 . . . . . . 1 . . . . 1 . . . . . 2 . . 1 1 2 2 1 1 . . . Assault 13 | . . . 1 . . . . . . . . . . . . . . . . . . . . . . . . . . . . . 6 6 . . Garrison . | . . . . . . . . . . . . . . . . . . . . . . . . . . . . . . . . . . . . . Intercept . | . . . . . . . . . . . . . . . . . . . . . . . . . . . . . . . . . . . . . Searches Triggered 1 | . . . . . . . . . . . . . . . . . . . . . . . . 1 . . . . . . . . . . . . Data Miner Redirects 1 | . . . . . . . . . . . . . . . . . . . . . . . . . . . . . . . 1 . . . . . Construction Impeded 1 | . . . . . . . . . . . . . . . . . . . . . . . . . 1 . . . . . . . . . . . Haulers Reinforced 1 | . . . . . . . . . . . . . . . . . . . 1 . . . . . . . . . . . . . . . . . Active Scanning Responses . | . . . . . . . . . . . . . . . . . . . . . . . . . . . . . . . . . . . . . Cargo Convoy Interrupts . | . . . . . . . . . . . . . . . . . . . . . . . . . . . . . . . . . . . . . Stealth | -11 -10 -10 -9 -9 -9 -8 -8 -7 -7 -7 -7 -7 -6 -6 -6 -6 -6 -5 -5 -5 -5 -5 -4 -4 -4 -4 -4 -4 -3 -3 -2 -2 -2 -1 -1 -1 --------- Run | Jun Mat Min Mat Min Exi Min Mat Fac Low Low Zio Dee Pro Fac Low Low Dat Pro Fac Upp Upp Zhi Pro Fac Ext Cet Arc Hub Res Qua Res Tes Sec Acc Com Ac0 Distress Signals 49 | . 1 . 4 . . 1 3 . . . . . . . . . . . . . . . . 1 1 2 . 1 3 1 1 1 4 . 25 . Communications Jammed 24 | . . . . . . . . . . . . . . . . . . . . . . . 2 . . . . 3 . . 11 . 8 . . . Distress Signals 15 | . . . . . . . . . . . . . . . . . . . . . . . . . . . . . . . 11 . 4 . . . Times Spotted 556 | . 20 5 55 6 . 10 42 . 10 7 . 53 8 8 4 10 . 13 12 11 14 . 7 13 20 20 6 15 2 16 17 14 61 4 22 51 Peak Tracking Total 37 | . 4 3 5 3 . 8 6 1 4 4 . 37 3 5 3 3 . 4 3 6 5 . 5 4 4 5 2 5 5 3 3 2 29 9 9 13 Tactical Retreats 12 | . . . 2 . . . 3 . . . . . . . . . . . . 1 1 . . . . . . . 1 2 . 1 1 . . . Traps | -11 -10 -10 -9 -9 -9 -8 -8 -7 -7 -7 -7 -7 -6 -6 -6 -6 -6 -5 -5 -5 -5 -5 -4 -4 -4 -4 -4 -4 -3 -3 -2 -2 -2 -1 -1 -1 ------- Run | Jun Mat Min Mat Min Exi Min Mat Fac Low Low Zio Dee Pro Fac Low Low Dat Pro Fac Upp Upp Zhi Pro Fac Ext Cet Arc Hub Res Qua Res Tes Sec Acc Com Ac0 Traps Triggered 10 | . 1 . . . . . 1 1 . . . . . . . . . . 2 . . . . . 1 . . . . . 1 2 . 1 . . Indirectly . | . . . . . . . . . . . . . . . . . . . . . . . . . . . . . . . . . . . . . Trap Hack Attempts . | . . . . . . . . . . . . . . . . . . . . . . . . . . . . . . . . . . . . . Triggered . | . . . . . . . . . . . . . . . . . . . . . . . . . . . . . . . . . . . . . Disarmed . | . . . . . . . . . . . . . . . . . . . . . . . . . . . . . . . . . . . . . Reprogrammed . | . . . . . . . . . . . . . . . . . . . . . . . . . . . . . . . . . . . . . Reused . | . . . . . . . . . . . . . . . . . . . . . . . . . . . . . . . . . . . . . Traps Extracted . | . . . . . . . . . . . . . . . . . . . . . . . . . . . . . . . . . . . . . Installed . | . . . . . . . . . . . . . . . . . . . . . . . . . . . . . . . . . . . . . Triggered 5 | . . . . . . . . . . 1 . . . . . 3 . 1 . . . . . . . . . . . . . . . . . . Machines | -11 -10 -10 -9 -9 -9 -8 -8 -7 -7 -7 -7 -7 -6 -6 -6 -6 -6 -5 -5 -5 -5 -5 -4 -4 -4 -4 -4 -4 -3 -3 -2 -2 -2 -1 -1 -1 ---------- Run | Jun Mat Min Mat Min Exi Min Mat Fac Low Low Zio Dee Pro Fac Low Low Dat Pro Fac Upp Upp Zhi Pro Fac Ext Cet Arc Hub Res Qua Res Tes Sec Acc Com Ac0 Machines Disabled 74 | . 3 . . . . . 2 . . 3 . 2 2 . . . . . 1 2 2 1 . 3 1 1 3 1 . 3 1 11 12 . 4 16 Max in Single Turn 2 | . 2 . . . . . 1 . . 1 . 1 1 . . . . . 1 1 1 1 . 2 . 1 . . . 1 1 2 1 . 1 2 Garrison Access 4 | . . . . . . . . . . . . . . . . . . . . . . . . 1 . . . . 1 . . 1 1 . . . Network Hub 1 | . . . . . . . . . . . . . . . . . . . . . . . . . . . . 1 . . . . . . . . Machines Repaired . | . . . . . . . . . . . . . . . . . . . . . . . . . . . . . . . . . . . . . Machines Sabotaged . | . . . . . . . . . . . . . . . . . . . . . . . . . . . . . . . . . . . . . Overloaded Fab Kills . | . . . . . . . . . . . . . . . . . . . . . . . . . . . . . . . . . . . . . Hacking | -11 -10 -10 -9 -9 -9 -8 -8 -7 -7 -7 -7 -7 -6 -6 -6 -6 -6 -5 -5 -5 -5 -5 -4 -4 -4 -4 -4 -4 -3 -3 -2 -2 -2 -1 -1 -1 --------- Run | Jun Mat Min Mat Min Exi Min Mat Fac Low Low Zio Dee Pro Fac Low Low Dat Pro Fac Upp Upp Zhi Pro Fac Ext Cet Arc Hub Res Qua Res Tes Sec Acc Com Ac0 Machines Accessed 116 | . 9 . 14 1 1 . 13 3 1 3 . . 1 2 . 3 3 . 1 1 2 5 . 7 8 1 . 1 5 10 2 7 8 . 2 2 Terminals 78 | . 7 . 9 . . . 9 2 . 1 . . 1 2 . . . . 1 1 1 . . 6 8 1 . 1 4 10 2 3 7 . 2 . Fabricators 1 | . . . . . . . . . . . . . . . . . . . . . . . . . . . . . . . . 1 . . . . Repair Stations 2 | . . . 1 . . . 1 . . . . . . . . . . . . . . . . . . . . . . . . . . . . . Recycling Units 6 | . 2 . 2 . . . 1 1 . . . . . . . . . . . . . . . . . . . . . . . . . . . . Scanalyzers 5 | . . . 2 . . . 1 . . . . . . . . . . . . . . . . . . . . . . . . 2 . . . . Garrison Access 5 | . . . . . . . 1 . . . . . . . . . . . . . . . . 1 . . . . 1 . . 1 1 . . . Total Hacks 360 | . 36 . 57 1 1 . 39 11 1 11 . . 6 7 . 8 23 . 3 3 4 18 . 14 22 1 . 2 11 23 13 19 14 . 3 9 Successful 218 | . 26 . 38 1 1 . 17 4 1 11 . . 6 2 . 8 23 . 1 3 4 18 . 6 10 . . . 3 2 6 9 8 . 1 9 Failed 142 | . 10 . 19 . . . 22 7 . . . . . 5 . . . . 2 . . . . 8 12 1 . 2 8 21 7 10 6 . 2 . Catastrophic 32 | . 2 . 3 . . . 3 2 . . . . . . . . . . . . . . . 1 3 . . . 4 7 2 2 1 . 2 . Database Lockouts . | . . . . . . . . . . . . . . . . . . . . . . . . . . . . . . . . . . . . . Manual 101 | . 23 . 16 . . . 14 6 . . . . . 7 . . . . 3 . . . . 5 6 1 . . 6 9 1 1 3 . . . Terminals 233 | . 32 . 36 . . . 28 6 . 4 . . 6 7 . . . . 3 3 3 . . 12 22 1 . 2 10 23 13 7 12 . 3 . Fabricators 1 | . . . . . . . . . . . . . . . . . . . . . . . . . . . . . . . . 1 . . . . Repair Stations 6 | . . . 2 . . . 4 . . . . . . . . . . . . . . . . . . . . . . . . . . . . . Recycling Units 16 | . 4 . 4 . . . 3 5 . . . . . . . . . . . . . . . . . . . . . . . . . . . . Scanalyzers 26 | . . . 15 . . . 3 . . . . . . . . . . . . . . . . . . . . . . . . 8 . . . . Garrison Access 9 | . . . . . . . 1 . . . . . . . . . . . . . . . . 2 . . . . 1 . . 3 2 . . . Terminal Hacks 168 | . 21 . 18 1 1 . 8 2 1 11 . . 6 1 . 8 23 . 1 3 4 18 . 5 8 . . . 1 2 6 3 6 . 1 9 Record 47 | . . . . . 1 . . . . 10 . . 6 . . 6 6 . . 3 3 6 . . . . . . . . . . . . . 6 Part Schematic 20 | . 5 . 1 . . . . . . . . . . . . . 10 . . . . 4 . . . . . . . . . . . . . . Robot Schematic 4 | . . . . . . . . . . . . . . . . . 4 . . . . . . . . . . . . . . . . . . . Robot Analysis 16 | . 5 . 4 . . . . . . . . . . . . . . . 1 . . 4 . 1 1 . . . . . . . . . . . Prototype ID Bank 17 | . 2 . 3 . . . 3 . . . . . . . . . 3 . . . . 4 . . 1 . . . . . 1 . . . . . Open Door 13 | . . . . 1 . . . . 1 1 . . . . . 2 . . . . 1 . . 1 . . . . . . . 1 4 . 1 . Branch Access Points 7 | . 1 . . . . . 1 1 . . . . . 1 . . . . . . . . . 1 . . . . 1 . 1 . . . . . Machine Index 1 | . . . . . . . . . . . . . . . . . . . . . . . . . . . . . . . 1 . . . . . Unreport Threat 6 | . . . . . . . 1 . . . . . . . . . . . . . . . . 1 2 . . . . 1 1 . . . . . Locate Traps 15 | . 4 . 4 . . . 1 1 . . . . . . . . . . . . . . . . 2 . . . . . 1 1 1 . . . Recall Investigation 4 | . 2 . 1 . . . 1 . . . . . . . . . . . . . . . . . . . . . . . . . . . . . Recall Reinforcements 1 | . . . . . . . . . . . . . . . . . . . . . . . . . . . . . . . 1 . . . . . Hauler Manifests 2 | . . . 1 . . . 1 . . . . . . . . . . . . . . . . . . . . . . . . . . . . . Registered Components 2 | . 1 . 1 . . . . . . . . . . . . . . . . . . . . . . . . . . . . . . . . . Zone Layout 10 | . 1 . 3 . . . . . . . . . . . . . . . . . . . . 1 2 . . . . 1 . 1 1 . . . Gate Test 138-A 2 | . . . . . . . . . . . . . . . . . . . . . . . . . . . . . . . . . . . . 2 Gate Test 138-B 1 | . . . . . . . . . . . . . . . . . . . . . . . . . . . . . . . . . . . . 1 Fabricator Hacks 1 | . . . . . . . . . . . . . . . . . . . . . . . . . . . . . . . . 1 . . . . Network Status 1 | . . . . . . . . . . . . . . . . . . . . . . . . . . . . . . . . 1 . . . . Repair Station Hacks 5 | . . . 2 . . . 3 . . . . . . . . . . . . . . . . . . . . . . . . . . . . . Scan Component 3 | . . . 1 . . . 2 . . . . . . . . . . . . . . . . . . . . . . . . . . . . . Repair 2 | . . . 1 . . . 1 . . . . . . . . . . . . . . . . . . . . . . . . . . . . . Recycling Unit Hacks 2 | . 1 . 1 . . . . . . . . . . . . . . . . . . . . . . . . . . . . . . . . . Retrieve Components 2 | . 1 . 1 . . . . . . . . . . . . . . . . . . . . . . . . . . . . . . . . . Scanalyzer 19 | . . . 12 . . . 3 . . . . . . . . . . . . . . . . . . . . . . . . 4 . . . . Insert Component 9 | . . . 4 . . . 1 . . . . . . . . . . . . . . . . . . . . . . . . 4 . . . . Analyze 10 | . . . 8 . . . 2 . . . . . . . . . . . . . . . . . . . . . . . . . . . . . Garrison Access Hacks 5 | . . . . . . . 1 . . . . . . . . . . . . . . . . 1 . . . . 1 . . 1 1 . . . Unlock Access 1 | . . . . . . . 1 . . . . . . . . . . . . . . . . . . . . . . . . . . . . . Seal Access 4 | . . . . . . . . . . . . . . . . . . . . . . . . 1 . . . . 1 . . 1 1 . . . Unauthorized Hacks 18 | . 4 . 5 . . . 2 2 . . . . . 1 . . . . . . . . . . 2 . . . 1 . . . 1 . . . Terminals 11 | . 3 . 2 . . . 1 . . . . . . 1 . . . . . . . . . . 2 . . . 1 . . . 1 . . . Botnet 10 | . 2 . 2 . . . 1 . . . . . . 1 . . . . . . . . . . 2 . . . 1 . . . 1 . . . Operators 1 | . 1 . . . . . . . . . . . . . . . . . . . . . . . . . . . . . . . . . . . Fabricators . | . . . . . . . . . . . . . . . . . . . . . . . . . . . . . . . . . . . . . Repair Stations . | . . . . . . . . . . . . . . . . . . . . . . . . . . . . . . . . . . . . . Recycling Units 7 | . 1 . 3 . . . 1 2 . . . . . . . . . . . . . . . . . . . . . . . . . . . . Recyclers 1 | . . . . . . . . 1 . . . . . . . . . . . . . . . . . . . . . . . . . . . . Mask 3 | . . . 1 . . . 1 1 . . . . . . . . . . . . . . . . . . . . . . . . . . . . Tunnel 3 | . 1 . 2 . . . . . . . . . . . . . . . . . . . . . . . . . . . . . . . . . Scanalyzers . | . . . . . . . . . . . . . . . . . . . . . . . . . . . . . . . . . . . . . Garrison Access . | . . . . . . . . . . . . . . . . . . . . . . . . . . . . . . . . . . . . . Data Cores Recovered 2 | . . . . . . . . . . . . . . . . . . . . . . . . 1 . . . . . . . . 1 . . . Used 2 | . . . . . . . . . . . . . . . . . . . . . . . . 1 . . . . . . . . 1 . . . Hacking Detections 78 | . 7 . 11 . . . 12 3 . 1 . . 1 2 . . . . 1 . 1 . . 6 7 1 . 1 4 10 2 4 3 . 1 . Full Trace Events 7 | . 1 . 3 . . . 1 . . . . . . . . . . . . . 1 . . . . . . . . . . . 1 . . . Feedback Events . | . . . . . . . . . . . . . . . . . . . . . . . . . . . . . . . . . . . . . Feedback Blocked . | . . . . . . . . . . . . . . . . . . . . . . . . . . . . . . . . . . . . . Robot Schematics Acquired 6 | . . . . . . . . . . . . . . . . . 4 . . . . . . . . . . . . . . 1 1 . . . Robots Built . | . . . . . . . . . . . . . . . . . . . . . . . . . . . . . . . . . . . . . Authchips . | . . . . . . . . . . . . . . . . . . . . . . . . . . . . . . . . . . . . . Time . | . . . . . . . . . . . . . . . . . . . . . . . . . . . . . . . . . . . . . Total Robot Build Rating . | . . . . . . . . . . . . . . . . . . . . . . . . . . . . . . . . . . . . . Part Schematics Acquired 31 | . 5 . 4 . . . 1 . . . . . . . . . 10 . . . . 4 . . . . . . . . . 2 5 . . . Parts Built . | . . . . . . . . . . . . . . . . . . . . . . . . . . . . . . . . . . . . . Authchips . | . . . . . . . . . . . . . . . . . . . . . . . . . . . . . . . . . . . . . Time . | . . . . . . . . . . . . . . . . . . . . . . . . . . . . . . . . . . . . . Total Part Build Rating . | . . . . . . . . . . . . . . . . . . . . . . . . . . . . . . . . . . . . . Parts Repaired 2 | . . . 1 . . . 1 . . . . . . . . . . . . . . . . . . . . . . . . . . . . . Time 83 | . . . 51 . . . 32 . . . . . . . . . . . . . . . . . . . . . . . . . . . . . Parts Recycled . | . . . . . . . . . . . . . . . . . . . . . . . . . . . . . . . . . . . . . Recycled Matter . | . . . . . . . . . . . . . . . . . . . . . . . . . . . . . . . . . . . . . Retrieved Matter . | . . . . . . . . . . . . . . . . . . . . . . . . . . . . . . . . . . . . . Retrieved Components 13 | . 3 . 10 . . . . . . . . . . . . . . . . . . . . . . . . . . . . . . . . . Parts Scanalyzed 4 | . . . 3 . . . 1 . . . . . . . . . . . . . . . . . . . . . . . . . . . . . Part Schematics Acquired 4 | . . . 3 . . . 1 . . . . . . . . . . . . . . . . . . . . . . . . . . . . . Parts Damaged 1 | . . . . . . . 1 . . . . . . . . . . . . . . . . . . . . . . . . . . . . . Bothacking | -11 -10 -10 -9 -9 -9 -8 -8 -7 -7 -7 -7 -7 -6 -6 -6 -6 -6 -5 -5 -5 -5 -5 -4 -4 -4 -4 -4 -4 -3 -3 -2 -2 -2 -1 -1 -1 ------------ Run | Jun Mat Min Mat Min Exi Min Mat Fac Low Low Zio Dee Pro Fac Low Low Dat Pro Fac Upp Upp Zhi Pro Fac Ext Cet Arc Hub Res Qua Res Tes Sec Acc Com Ac0 Used RIF Installer . | . . . . . . . . . . . . . . . . . . . . . . . . . . . . . . . . . . . . . Robots Hacked . | . . . . . . . . . . . . . . . . . . . . . . . . . . . . . . . . . . . . . Non-combat . | . . . . . . . . . . . . . . . . . . . . . . . . . . . . . . . . . . . . . Combat . | . . . . . . . . . . . . . . . . . . . . . . . . . . . . . . . . . . . . . Robot Hacks Applied . | . . . . . . . . . . . . . . . . . . . . . . . . . . . . . . . . . . . . . Relay Couplers Released 2 | . . . . . . . . . . . . . . . . . . . . . . . . . . . . . . . . . 2 . . . Machine Destruction 2 | . . . . . . . . . . . . . . . . . . . . . . . . . . . . . . . . . 2 . . . Fabnet Peak Effective % . | . . . . . . . . . . . . . . . . . . . . . . . . . . . . . . . . . . . . . Robots Rewired 9 | . . . . . . . . . . . . . . . . . . . . . . . . . 9 . . . . . . . . . . . Allies Hacked . | . . . . . . . . . . . . . . . . . . . . . . . . . . . . . . . . . . . . . Hacks Repelled . | . . . . . . . . . . . . . . . . . . . . . . . . . . . . . . . . . . . . . Allies | -11 -10 -10 -9 -9 -9 -8 -8 -7 -7 -7 -7 -7 -6 -6 -6 -6 -6 -5 -5 -5 -5 -5 -4 -4 -4 -4 -4 -4 -3 -3 -2 -2 -2 -1 -1 -1 -------- Run | Jun Mat Min Mat Min Exi Min Mat Fac Low Low Zio Dee Pro Fac Low Low Dat Pro Fac Upp Upp Zhi Pro Fac Ext Cet Arc Hub Res Qua Res Tes Sec Acc Com Ac0 Total Allies 80 | . . 2 . . . . . . . 2 5 . . . . . . 1 . . . . . . 18 5 . . . 2 . 2 2 6 35 . Largest Group 10 | . . 2 2 . . . . . . 2 5 5 . . . . . 1 1 . . . . . 10 10 6 5 . 1 1 1 1 6 9 . Highest-Rated Group 625 | . . 50 50 . . . . . . 56 132 132 . . . . . 96 96 . . . . . 517 625 625 466 . 234 234 234 216 88 126 . Highest-Rated Ally 234 | . . 31 31 . . . . . . 31 31 31 . . . . . 96 96 . . . . . 159 159 159 96 . 234 234 234 216 15 15 . Total Orders 1 | . . . . . . . . . . . . . . . . . . . . . . . . . . . . 1 . . . . . . . . STAY 1 | . . . . . . . . . . . . . . . . . . . . . . . . . . . . 1 . . . . . . . . Ally Attacks 347 | . . 15 12 . . . . . . 6 . 46 . . . . . 19 11 . . . . . 59 74 27 51 . . 16 1 . 3 7 . Total Damage 12245 | . . 239 348 . . . . . . 124 . 701 . . . . . 701 383 . . . . . 2163 2478 1241 1975 . . 1595 170 . 29 98 . Kills 74 | . . 4 5 . . . . . . 2 . 4 . . . . . 5 2 . . . . . 19 12 7 6 . . 7 1 . . . . Allies Corrupted 2 | . . . . . . . . . . . . . . . . . . . . . . . . . . . . . . 1 . . 1 . . . Allies Melted . | . . . . . . . . . . . . . . . . . . . . . . . . . . . . . . . . . . . . . Intel | -11 -10 -10 -9 -9 -9 -8 -8 -7 -7 -7 -7 -7 -6 -6 -6 -6 -6 -5 -5 -5 -5 -5 -4 -4 -4 -4 -4 -4 -3 -3 -2 -2 -2 -1 -1 -1 ------- Run | Jun Mat Min Mat Min Exi Min Mat Fac Low Low Zio Dee Pro Fac Low Low Dat Pro Fac Upp Upp Zhi Pro Fac Ext Cet Arc Hub Res Qua Res Tes Sec Acc Com Ac0 Robot Analysis Total 16 | . 5 . 4 . . . . . . . . . . . . . . . 1 . . 4 . 1 1 . . . . . . . . . . . Derelict Logs Recovered 17 | . . 3 . 1 . . . . 2 1 1 . 2 . 1 1 . 2 . . . . 3 . . . . . . . . . . . . . Drone Launches . | . . . . . . . . . . . . . . . . . . . . . . . . . . . . . . . . . . . . . Drone Recoveries . | . . . . . . . . . . . . . . . . . . . . . . . . . . . . . . . . . . . . . Exploration | -11 -10 -10 -9 -9 -9 -8 -8 -7 -7 -7 -7 -7 -6 -6 -6 -6 -6 -5 -5 -5 -5 -5 -4 -4 -4 -4 -4 -4 -3 -3 -2 -2 -2 -1 -1 -1 ------------- Run | Jun Mat Min Mat Min Exi Min Mat Fac Low Low Zio Dee Pro Fac Low Low Dat Pro Fac Upp Upp Zhi Pro Fac Ext Cet Arc Hub Res Qua Res Tes Sec Acc Com Ac0 Turns Passed 53145 | 112 1232 800 1722 459 219 53 2569 308 1656 2467 2451 2974 1798 893 2723 2827 170 2138 260 3398 4603 434 3414 1002 1040 452 1997 343 548 1945 933 1451 1713 90 1481 470 Spaces Moved 27042 | 57 631 478 994 392 203 35 1578 228 1064 1562 1727 1557 815 329 1222 1247 81 957 74 1313 1530 158 1040 394 408 149 61 104 306 747 482 718 1023 198 2039 1141 Core 86 | 26 . . . . . . . . . 2 50 . 8 . . . . . . . . . . . . . . . . . . . . . . . Treads 4364 | 31 631 478 112 . . . . . . . . . . . . . . . . . . . . . . . 56 104 306 747 482 718 699 . . . Legs 13171 | . . . . . . . . . . . . . 562 329 1222 1247 81 957 74 1313 1530 158 1040 394 408 149 5 . . . . . 324 198 2039 1141 Wheels 9418 | . . . 882 392 203 35 1578 228 1064 1560 1674 1557 245 . . . . . . . . . . . . . . . . . . . . . . . Hover 3 | . . . . . . . . . . . 3 . . . . . . . . . . . . . . . . . . . . . . . . . Flight . | . . . . . . . . . . . . . . . . . . . . . . . . . . . . . . . . . . . . . Fastest Speed 30 | 50 160 160 105 105 105 105 105 130 130 130 50 130 145 180 180 180 210 210 210 210 150 210 210 185 185 185 240 240 152 152 152 160 30 30 30 30 Average Speed 147 | 120 160 160 111 109 105 105 127 130 130 131 129 137 190 183 209 212 210 210 210 210 208 210 210 185 185 230 240 240 160 152 153 160 119 30 30 30 Slowest Speed 1750 | 160 160 160 240 120 105 105 130 130 130 1150 200 145 1750 210 210 300 210 210 210 210 240 240 240 185 185 240 240 240 240 152 160 160 160 30 90 30 Overloaded Moves . | . . . . . . . . . . . . . . . . . . . . . . . . . . . . . . . . . . . . . Propulsion Burnouts . | . . . . . . . . . . . . . . . . . . . . . . . . . . . . . . . . . . . . . Robots Hopped 2 | . . . . . . . . . . . 1 . . . . 1 . . . . . . . . . . . . . . . . . . . . Cave-ins Triggered 1 | . . . . . . . . . . . . . . . . . . . . . . . . . 1 . . . . . . . . . . . Teleports 2 | . . . . . . . . . . . . . . . . . . . . . . . . . . . . . . . . . . . 1 1 Exploration Rate (%) 64 | 3 95 96 95 94 59 15 92 5 95 98 86 84 88 13 97 96 70 98 4 99 98 60 94 14 63 63 73 16 15 82 16 85 70 6 74 69 Regions Visited 36 Branch Regions 26 Pre-discovered Areas 16 | . 1 1 2 2 1 . . . 1 1 1 . 1 . . . 1 1 . . . 3 . . . . . . . . . . . . . . Known Exits Taken 29 | . 1 1 1 . . . 1 1 1 1 1 . 1 1 1 1 1 1 1 1 1 1 1 1 1 1 1 1 1 1 1 1 1 . . . Unknown Exits Taken 7 | 1 . . . 1 1 1 . . . . . 1 . . . . . . . . . . . . . . . . . . . . . 1 1 . Scrap Searched 38 | . . 1 . 3 . . . . 1 9 4 . 4 . 2 2 . 4 . 3 2 . 3 . . . . . . . . . . . . . Spaces Dug 383 | . . . 2 . . . 2 2 1 11 3 41 26 4 17 3 . 6 4 27 33 . 21 16 17 . 2 4 6 23 20 14 48 10 . 20 Terrain Destroyed 1761 | . 21 . 10 14 . 57 69 2 87 26 3 50 37 10 24 27 . 19 11 102 57 . 36 43 22 5 4 51 8 33 44 24 108 32 74 651 Melee 13 | . . . 2 . . . . . . 8 3 . . . . . . . . . . . . . . . . . . . . . . . . . Projectile 1394 | . . . . . . . 25 2 23 18 . 50 37 10 24 11 . 19 11 46 57 . 36 25 22 5 4 15 8 33 24 24 108 32 74 651 AOE 354 | . 21 . 8 14 . 57 44 . 64 . . . . . . 16 . . . 56 . . . 18 . . . 36 . . 20 . . . . . Terrain Rammed . | . . . . . . . . . . . . . . . . . . . . . . . . . . . . . . . . . . . . . Walls Destroyed . | . . . . . . . . . . . . . . . . . . . . . . . . . . . . . . . . . . . . . Machines Disabled . | . . . . . . . . . . . . . . . . . . . . . . . . . . . . . . . . . . . . . Actions | -11 -10 -10 -9 -9 -9 -8 -8 -7 -7 -7 -7 -7 -6 -6 -6 -6 -6 -5 -5 -5 -5 -5 -4 -4 -4 -4 -4 -4 -3 -3 -2 -2 -2 -1 -1 -1 --------- Run | Jun Mat Min Mat Min Exi Min Mat Fac Low Low Zio Dee Pro Fac Low Low Dat Pro Fac Upp Upp Zhi Pro Fac Ext Cet Arc Hub Res Qua Res Tes Sec Acc Com Ac0 Total 38507 | 88 755 503 1352 411 211 42 1918 241 1281 1889 1876 2285 987 589 1339 1381 81 1029 126 1816 2823 258 2197 589 633 251 1915 189 360 1550 670 1014 1477 229 2887 1265 Wait 8355 | 9 49 18 154 3 . . 111 . 161 240 45 453 112 201 82 89 . 32 3 396 1187 85 1116 102 52 50 1810 24 23 656 72 92 148 7 766 7 Move 27001 | 56 630 477 993 391 202 34 1577 227 1063 1561 1724 1556 814 328 1221 1244 80 956 73 1312 1529 157 1039 393 406 148 60 103 305 746 481 717 1023 197 2038 1140 Hop 2 | . . . . . . . . . . . 1 . . . . 1 . . . . . . . . . . . . . . . . . . . . Pick Up 360 | 10 13 1 22 4 . . 28 6 4 5 32 59 2 22 1 5 . . 5 . 19 4 . 23 . 2 5 3 2 10 9 20 33 . 6 5 Fast Attach 118 | 6 1 . 5 2 . . 12 . 1 6 8 5 1 1 . . . . . 4 2 2 . 1 4 2 1 1 2 2 8 15 10 1 7 8 Attach 96 | 1 . . 6 . 2 . 7 3 3 2 2 16 . . . . . . 1 . 2 . . 2 . . 1 1 . 3 6 5 23 4 4 2 Detach 62 | . . . 2 . 1 . . . 1 . . 2 2 2 2 1 . 6 1 1 1 . . 2 7 . . 2 1 . 4 4 14 4 2 . Swap 348 | . 3 1 12 3 2 1 9 . 9 15 5 20 5 6 8 12 1 7 5 19 13 4 10 18 6 1 5 7 7 24 19 35 43 . 7 6 Drop 368 | 1 8 1 26 2 4 . 29 4 2 6 26 53 5 10 3 9 . . 2 13 9 5 . 7 7 6 10 5 3 12 13 38 28 1 10 10 Fire 1602 | 5 51 5 124 6 . 7 145 1 37 44 . 121 37 19 20 20 . 28 26 71 60 1 32 41 34 42 23 43 17 97 58 87 151 15 47 87 Melee 67 | . . . 8 . . . . . . 10 33 . 9 . 2 . . . . . 1 . . . . . . . . . . 1 3 . . . Ram . | . . . . . . . . . . . . . . . . . . . . . . . . . . . . . . . . . . . . . Kick 1 | . . . . . . . . . . . . . . . . . . . . . . . . . . . . . . . . . 1 . . . Crush . | . . . . . . . . . . . . . . . . . . . . . . . . . . . . . . . . . . . . . Escape Stasis 16 | . . . . . . . . . . . . . . . . . . . 10 . . . . . 6 . . . . . . . . . . . Rewire 111 | . . . . . . . . . . . . . . . . . . . . . . . . . 111 . . . . . . . . . . . Trap . | . . . . . . . . . . . . . . . . . . . . . . . . . . . . . . . . . . . . . Miscellaneous . | . . . . . . . . . . . . . . . . . . . . . . . . . . . . . . . . . . . . . Route ------- -11/Junkyard -10/Materials (discovered 4 exits: *Mat x3 / *Min) -10/Mines (discovered 2 exits: *Mat x2) -9/Materials (discovered 4 exits: *Mat x3 / *Min) -9/Mines (discovered 3 exits: *Mat x2 / *Exi) -9/Exiles -8/Mines (discovered 2 exits: *Mat x2) -8/Materials (discovered 3 exits: *Fac x2 / Gar) -7/Factory (discovered 4 exits: Sto x2 / *Low x2) -7/Lower Caves -7/Lower Caves (discovered 2 exits: *Fac / *Zio) -7/Zion (discovered 2 exits: *Dee / *Pro) -7/Deep Caves -6/Proximity Caves -6/Factory (discovered 6 exits: Fac x4 / *Low x2) -6/Lower Caves (discovered 2 exits: *Low / *Dat) -6/Lower Caves (discovered 2 exits: *Fac / *Dat) -6/Data Miner -5/Proximity Caves -5/Factory (discovered 5 exits: Fac x3 / *Upp x2) -5/Upper Caves -5/Upper Caves (discovered 2 exits: *Fac / *Zhi) -5/Zhirov -4/Proximity Caves -4/Factory (discovered 4 exits: Upp x2 / *Ext x2) -4/Extension (discovered 2 exits: *Res / *Cet) -4/Cetus (discovered 2 exits: *Res / *Arc) -4/Archives -4/Hub_04(d) -3/Research (discovered 5 exits: Res x2 / Arm / *Qua x2) -3/Quarantine -2/Research (discovered 2 exits: *Tes x2) -2/Testing (discovered 2 exits: *Acc / *Sec) -2/Section 7 -1/Access -1/Command (discovered 3 exits: [Sur x2] / *Ac0) -1/Access_0 To Fleet Rendezvous History --------- Turn | Location | Event 8 | -11/Junkyard | Discovered new exit (range 15) 113 | -11/Junkyard | Entered Materials 245 | -10/Materials | Discovered new exit (range 10) 274 | -10/Materials | Identified exit to Mines 316 | -10/Materials | Build established: Mutant 616 | -10/Materials | Discovered new exit (range 6) 947 | -10/Materials | Discovered new exit (range 13) 1345 | -10/Materials | Entered Mines 1533 | -10/Mines | Identified exit to Materials 1680 | -10/Mines | Found a damaged Exp. Sensor Array with a note attached 1684 | -10/Mines | Found Prototype Device 1814 | -10/Mines | Discovered exit to Materials (range 9) 1892 | -10/Mines | Learned location of Zion (-7) 2003 | -10/Mines | Learned location of 1 exit from Materials 2145 | -10/Mines | Entered Materials 2145 | -9/Materials | Accompanied by 2 allies 2145 | -9/Materials | Evolved 2 slots: Utility x2 2146 | -9/Materials | Identified exit to Mines 2150 | -9/Materials | Led the pair of lost Derelicts to an unsafe place 2469 | -9/Materials | Identified Exp. Sensor Array 2513 | -9/Materials | Discovered new exit (range 15) 2683 | -9/Materials | Discovered new exit (range 12) 3475 | -9/Materials | Discovered new exit (range 7) 3577 | -9/Materials | Repaired Imp. Assault Rifle 3661 | -9/Materials | Destroyed 7 combat bots 3745 | -9/Materials | First assault squad dispatched 3798 | -9/Materials | Core integrity fell below 50% 3835 | -9/Materials | Core integrity fell below 20% 3861 | -9/Materials | Lost 3 parts (1n2u) 3867 | -9/Materials | Entered Mines 3868 | -9/Mines | Learned location of Storage (-7) 4021 | -9/Mines | Discovered new exit (range 7) 4060 | -9/Mines | Met a Derelict shopkeep closing up shop 4218 | -9/Mines | Discovered new exit (range 5) 4277 | -9/Mines | Deemed a non-threat by the Exiles lab entrance 4277 | -9/Mines | Discovered new exit (range 5) 4326 | -9/Mines | Entered Exiles 4352 | -9/Exiles | Met 8R-AWN 4373 | -9/Exiles | Met EX-HEX 4415 | -9/Exiles | Met EX-DEC 4532 | -9/Exiles | Discovered new exit (range 12) 4545 | -9/Exiles | Entered Mines 4566 | -8/Mines | Discovered new exit (range 6) 4587 | -8/Mines | Discovered new exit (range 15) 4598 | -8/Mines | Entered Materials 4598 | -8/Materials | Evolved 2 slots: Utility x2 4766 | -8/Materials | Repaired Arm. Wheel? 5025 | -8/Materials | Discovered new exit (range 7) 5035 | -8/Materials | Identified exit to Factory 6462 | -8/Materials | Discovered exit to Factory (range 3) 6538 | -8/Materials | Identified exit to Garrison 6611 | -8/Materials | Core integrity fell below 50% 7167 | -8/Materials | Entered Factory 7167 | -7/Factory | Evolved 2 slots: Power x1, Utility x1 7210 | -7/Factory | Identified exit to Storage 7210 | -7/Factory | Identified exit to Lower Caves 7475 | -7/Factory | Entered Lower Caves 7664 | -7/Lower Caves | Build established: Skirmisher 7681 | -7/Lower Caves | Learned Factory stockpile data 7879 | -7/Lower Caves | Encountered a Warlord checkpoint 8465 | -7/Lower Caves | Learned location of Extension (-4) 8722 | -7/Lower Caves | Discovered new exit (range 15) 9002 | -7/Lower Caves | Identified exit to Lower Caves 9131 | -7/Lower Caves | Entered another Lower Caves area 9133 | -7/Lower Caves | Attracted the attention of an 0b10 checkpoint 9142 | -7/Lower Caves | Discovered new exit (range 13) 9621 | -7/Lower Caves | Lost 3 parts (2p1w) 10720 | -7/Lower Caves | Learned location of 1 exit from Research 10720 | -7/Lower Caves | Learned Research emergency access door positions 10720 | -7/Lower Caves | Learned Research stockpile data 10867 | -7/Lower Caves | Discovered new exit (range 12) 11168 | -7/Lower Caves | A Commander dispatched an escort 11471 | -7/Lower Caves | Learned Research emergency access door positions 11597 | -7/Lower Caves | Identified exit to Zion 11598 | -7/Lower Caves | Entered Zion 11615 | -7/Zion | Found CR-A16's Pointy Stick 11714 | -7/Zion | Discovered new exit (range 14) 11816 | -7/Zion | Identified exit to Proximity Caves 11946 | -7/Zion | Learned Factory emergency access door positions 11977 | -7/Zion | Learned Factory terminal intel 12024 | -7/Zion | Identified exit to Deep Caves 12041 | -7/Zion | Received a hallucinogenic algorithm 12123 | -7/Zion | Learned location of Warlord (-4) 12167 | -7/Zion | Found Prototype Processor 12172 | -7/Zion | Found Prototype Processor 12174 | -7/Zion | Found Prototype Processor 12182 | -7/Zion | Found Prototype Processor 12185 | -7/Zion | Found Prototype Processor 12194 | -7/Zion | Found Prototype Processor 12290 | -7/Zion | Found Prototype Device 12320 | -7/Zion | Identified Exp. Target Analyzer 12323 | -7/Zion | Gained Derelict followers 12349 | -7/Zion | Identified Phasing AFG 12409 | -7/Zion | Identified Exp. Signal Interpreter 12419 | -7/Zion | Identified Spectral Analyzer 12454 | -7/Zion | Identified Exp. Melee Analysis Suite (x2) 12467 | -7/Zion | Build established: Mutant 12489 | -7/Zion | Identified Exp. Armor Integrity Analyzer 14031 | -7/Zion | Saw the warning signs outside the Deep Caves entrance 14049 | -7/Zion | Entered Deep Caves 14049 | -7/Deep Caves | Accompanied by 5 allies 14224 | -7/Deep Caves | Attacked by Z-Imprinter 14250 | -7/Deep Caves | Allies destroyed Z-Imprinter 14433 | -7/Deep Caves | Found Prototype Protection 14482 | -7/Deep Caves | Identified Zio. Weapon Casing 14855 | -7/Deep Caves | Found Prototype Protection 14963 | -7/Deep Caves | Identified Zio. Heavy Carapace 15027 | -7/Deep Caves | Found Zio. Weapon Casing 15087 | -7/Deep Caves | Found Zio. Weapon Casing 15271 | -7/Deep Caves | Discovered new exit (range 7) 15796 | -7/Deep Caves | Spotted as-53381 15835 | -7/Deep Caves | Destroyed as-53381 15865 | -7/Deep Caves | Lost 4 parts (1p3u) 15997 | -7/Deep Caves | Spotted as-87036 16049 | -7/Deep Caves | Core integrity fell below 50% 16085 | -7/Deep Caves | Destroyed as-87036 16112 | -7/Deep Caves | Lost 3 parts (1p1n1u) 16282 | -7/Deep Caves | Found Zio. Weapon Casing 16617 | -7/Deep Caves | Triggered Deep Caves wall 16617 | -7/Deep Caves | Spotted AS-91267 16617 | -7/Deep Caves | Spotted AS-72806 16623 | -7/Deep Caves | Exposed GOLEM chamber 16638 | -7/Deep Caves | Destroyed AS-91267 16646 | -7/Deep Caves | Destroyed AS-72806 16668 | -7/Deep Caves | Lost 4 parts (1p3u) 16671 | -7/Deep Caves | Destroyed 38 combat bots 16755 | -7/Deep Caves | Found Prototype Ballistic Gun 16788 | -7/Deep Caves | Identified XL Autogun Array 16801 | -7/Deep Caves | Found GOLEM Unit 16813 | -7/Deep Caves | Found GOLEM Unit 16818 | -7/Deep Caves | Found GOLEM Unit 16834 | -7/Deep Caves | Found GOLEM Unit 17023 | -7/Deep Caves | Entered Proximity Caves 17025 | -6/Proximity Caves | Attracted the attention of an 0b10 checkpoint 17095 | -6/Proximity Caves | Build established: Golem 17238 | -6/Proximity Caves | Attracted the attention of an 0b10 base 17419 | -6/Proximity Caves | Learned Armory garrison access intel 17419 | -6/Proximity Caves | Learned Factory emergency access door positions 17419 | -6/Proximity Caves | Learned location of 1 exit from Factory 17419 | -6/Proximity Caves | Learned location of 2 exits from Upper Caves 17419 | -6/Proximity Caves | Identified exit to Factory 17525 | -6/Proximity Caves | Spotted B-75 Beast 17545 | -6/Proximity Caves | Core integrity fell below 20% 17558 | -6/Proximity Caves | Revealed the true nature of CR-A16's Pointy Stick 17562 | -6/Proximity Caves | Destroyed B-75 Beast 18282 | -6/Proximity Caves | Learned Factory trap positions 18821 | -6/Proximity Caves | Entered Factory 18821 | -6/Factory | Evolved 2 slots: Utility x2 18822 | -6/Factory | Identified exit to Factory 18824 | -6/Factory | Loaded intel: 108 trap records 18827 | -6/Factory | Loaded intel: 26 terminal locations 18919 | -6/Factory | Destroyed 7 combat bots 19512 | -6/Factory | Identified exit to Lower Caves 19714 | -6/Factory | Entered Lower Caves 19932 | -6/Lower Caves | Encountered a Warlord checkpoint 19934 | -6/Lower Caves | A Derelict revealed a hidden shortcut to meet someone special 19950 | -6/Lower Caves | Identified exit to Data Miner 20142 | -6/Lower Caves | Learned location of 1 exit from Factory 21621 | -6/Lower Caves | Discovered new exit (range 10) 21640 | -6/Lower Caves | Identified exit to Lower Caves 21772 | -6/Lower Caves | Spotted B-75 Beast 22048 | -6/Lower Caves | Destroyed B-75 Beast 22437 | -6/Lower Caves | Entered another Lower Caves area 22666 | -6/Lower Caves | Discovered exit to Factory (range 5) 23744 | -6/Lower Caves | Learned 8 Factory zone layouts 23884 | -6/Lower Caves | Found Prototype Device 23994 | -6/Lower Caves | Identified Heart of Steel 24496 | -6/Lower Caves | Discovered exit to Data Miner (range 12) 24937 | -6/Lower Caves | Learned location of 1 exit from Factory 24937 | -6/Lower Caves | Learned Armory trap positions 24937 | -6/Lower Caves | Learned Extension emergency access door positions 24937 | -6/Lower Caves | Learned Extension terminal intel 24937 | -6/Lower Caves | Learned Research garrison access intel 25264 | -6/Lower Caves | Entered Data Miner 25264 | -6/Data Miner | Discovered new exit (range 6) 25304 | -6/Data Miner | Met Data Miner 25351 | -6/Data Miner | Learned location of Section 7 (-2) 25351 | -6/Data Miner | Acquired the access code to Warlord's prototype stash 25384 | -6/Data Miner | Received God Mode back door access code from Data Miner 25430 | -6/Data Miner | Identified exit to Proximity Caves 25434 | -6/Data Miner | Entered Proximity Caves 25838 | -5/Proximity Caves | Escorted by Enhanced Grunt 27572 | -5/Proximity Caves | Entered Factory 27572 | -5/Factory | Accompanied by 1 ally 27572 | -5/Factory | Evolved 2 slots: Power x1, Utility x1 27573 | -5/Factory | Identified exit to Factory 27574 | -5/Factory | Identified exit to Upper Caves 27697 | -5/Factory | Found Prototype Device 27698 | -5/Factory | Identified Exp. Thermal Shield 27832 | -5/Factory | Entered Upper Caves 27833 | -5/Upper Caves | Identified exit to Upper Caves 29790 | -5/Upper Caves | Learned Factory terminal intel 29790 | -5/Upper Caves | Learned 6 Proximity Caves zone layouts 31230 | -5/Upper Caves | Entered another Upper Caves area 31231 | -5/Upper Caves | Identified exit to Zhirov 31784 | -5/Upper Caves | Discovered exit to Factory (range 5) 33212 | -5/Upper Caves | Spotted B-75 Beast 33221 | -5/Upper Caves | Destroyed B-75 Beast 34808 | -5/Upper Caves | Attracted the attention of an 0b10 base 34908 | -5/Upper Caves | Learned Research terminal intel 34908 | -5/Upper Caves | Learned Armory security intel 34908 | -5/Upper Caves | Learned Research stockpile data 35833 | -5/Upper Caves | Entered Zhirov 35833 | -5/Zhirov | Discovered new exit (range 3) 35842 | -5/Zhirov | Identified exit to Proximity Caves 35873 | -5/Zhirov | Met Zhirov 35920 | -5/Zhirov | Learned location of Quarantine (-3) 35920 | -5/Zhirov | Learned location of Testing (-2) 35932 | -5/Zhirov | Zhirov requested help retrieving the SGEMP Prototype 35973 | -5/Zhirov | Found Alien Artifact 35973 | -5/Zhirov | Identified Integrated Dissipator 35973 | -5/Zhirov | Installed Integrated Dissipator, increased core heat dissipation (+20) 36001 | -5/Zhirov | Found Alien Artifact 36267 | -5/Zhirov | Entered Proximity Caves 36274 | -4/Proximity Caves | Spotter reported a threat 36275 | -4/Proximity Caves | Spotter reported a threat 37219 | -4/Proximity Caves | Learned location of 1 exit from Research 37225 | -4/Proximity Caves | Learned Research interactive machine intel 39004 | -4/Proximity Caves | Learned 4 Research zone layouts 39353 | -4/Proximity Caves | Discovered exit to Factory (range 10) 39681 | -4/Proximity Caves | Entered Factory 39681 | -4/Factory | Evolved 2 slots: Propulsion x2 39682 | -4/Factory | Loaded intel: 28 terminal locations 39929 | -4/Factory | Identified exit to Upper Caves 39929 | -4/Factory | Identified exit to Extension 39965 | -4/Factory | Build established: Scavenger-Golem 39978 | -4/Factory | Search patrols dispatched 40683 | -4/Factory | Entered Extension 40685 | -4/Extension | Loaded intel: 18 terminal locations 40942 | -4/Extension | Rescued A7 41053 | -4/Extension | Rescued a captive Derelict 41200 | -4/Extension | Crushed by falling debris 41275 | -4/Extension | Rescued a captive Derelict 41276 | -4/Extension | Rescued a captive Derelict 41555 | -4/Extension | Rescued a captive Derelict 41605 | -4/Extension | Rescued a captive Derelict 41605 | -4/Extension | Rescued a captive Derelict 41624 | -4/Extension | Rescued a captive Derelict 41624 | -4/Extension | Rescued a captive Derelict 41691 | -4/Extension | Discovered new exit (range 10) 41693 | -4/Extension | Discovered new exit (range 6) 41711 | -4/Extension | Identified exit to Research 41716 | -4/Extension | Found Quantum Capacitor 41722 | -4/Extension | Identified exit to Cetus 41723 | -4/Extension | Entered Cetus 41723 | -4/Cetus | Accompanied by 10 allies (A7) 41728 | -4/Cetus | Acquired a Cetus Manufacturing Module code from A7 41756 | -4/Cetus | Spotted Cetus Guard 41757 | -4/Cetus | Spotted Cetus Guard 41759 | -4/Cetus | Spotted Cetus Guard 41760 | -4/Cetus | Spotted Cetus Guard 41770 | -4/Cetus | Destroyed Cetus Guard 41771 | -4/Cetus | Allies destroyed Cetus Guard 41773 | -4/Cetus | Allies destroyed Cetus Guard 41774 | -4/Cetus | Allies destroyed Cetus Guard 41889 | -4/Cetus | Started Cetus Manufacturing Module 41909 | -4/Cetus | Escorted A7 to Cetus Mainframe 41914 | -4/Cetus | Manufactured an Enhanced Grunt 41934 | -4/Cetus | Discovered new exit (range 16) 41939 | -4/Cetus | Manufactured an Enhanced Grunt 41964 | -4/Cetus | Manufactured an Enhanced Grunt 41978 | -4/Cetus | Spotted Cetus Guard 41979 | -4/Cetus | Destroyed Cetus Guard 41981 | -4/Cetus | Destroyed Cetus Guard 41987 | -4/Cetus | Spotted Cetus Guard 41987 | -4/Cetus | Spotted Cetus Guard 41988 | -4/Cetus | Allies destroyed Cetus Guard 41989 | -4/Cetus | Manufactured an Enhanced Grunt 41997 | -4/Cetus | Destroyed Cetus Guard 42014 | -4/Cetus | Manufactured an Enhanced Grunt 42040 | -4/Cetus | Discovered exit to Research (range 16) 42054 | -4/Cetus | Met Revision 17 42131 | -4/Cetus | Identified exit to Archives 42175 | -4/Cetus | Entered Archives 42175 | -4/Archives | Accompanied by 6 allies (A7) 42180 | -4/Archives | Received a hacking code to weaken MAIN.C 42308 | -4/Archives | Build established: Commander-Golem 42397 | -4/Archives | Discovered new exit (range 13) 42424 | -4/Archives | Identified exit to Hub_04(d) 44172 | -4/Archives | Entered Hub_04(d) 44172 | -4/Hub_04(d) | Accompanied by 5 allies 44194 | -4/Hub_04(d) | Discovered exit to Research (range 4) 44311 | -4/Hub_04(d) | Found Exp. Thermal Shield 44383 | -4/Hub_04(d) | Network Hub disabled 44409 | -4/Hub_04(d) | Spotted Lightning 44430 | -4/Hub_04(d) | Spotted Lightning 44430 | -4/Hub_04(d) | Spotted Lightning 44448 | -4/Hub_04(d) | Destroyed Lightning 44450 | -4/Hub_04(d) | Destroyed Lightning 44452 | -4/Hub_04(d) | System corruption reached 10% 44468 | -4/Hub_04(d) | Destroyed Lightning 44480 | -4/Hub_04(d) | Found Prototype Device 44489 | -4/Hub_04(d) | Destroyed 8 combat bots 44515 | -4/Hub_04(d) | Entered Research 44515 | -3/Research | Evolved 2 slots: Propulsion x2 44516 | -3/Research | Identified exit to Armory 44516 | -3/Research | Identified exit to Research 44517 | -3/Research | Identified Exp. EM Disruption Field 44520 | -3/Research | Loaded intel: 44 interactive machine locations 44521 | -3/Research | Loaded intel: 23 terminal locations 44522 | -3/Research | Loaded intel: 3 garrison access locations 44577 | -3/Research | Build established: Golem 44715 | -3/Research | Revision forces began assault on 0b10 44730 | -3/Research | Identified exit to Quarantine 44923 | -3/Research | Met up with Revision 17++ 45063 | -3/Research | Entered Quarantine 45322 | -3/Quarantine | Found Alien Slashing Weapon 45360 | -3/Quarantine | Found Alien Artifact 45360 | -3/Quarantine | Identified Phase Redirector 45385 | -3/Quarantine | Build established: Mutant 45393 | -3/Quarantine | Found Prototype Launcher 45441 | -3/Quarantine | Identified Hellfire Missile Launcher 45565 | -3/Quarantine | Discovered exit to Research (range 13) 45945 | -3/Quarantine | Cryocooling Duct disabled 45960 | -3/Quarantine | Ambient heat levels rising (+20) 45960 | -3/Quarantine | Non-combat units ordered to evacuate 46076 | -3/Quarantine | Found Prototype Device 46090 | -3/Quarantine | Identified Exp. Focal Shield 46116 | -3/Quarantine | Found Alien Artifact 46119 | -3/Quarantine | Identified Core Reset Matrix 46119 | -3/Quarantine | Identified Sigix Broadsword 46119 | -3/Quarantine | Identified Transdimensional Reconstructor 46119 | -3/Quarantine | Used Core Reset Matrix 46123 | -3/Quarantine | Detected hypermatrix surge 46274 | -3/Quarantine | Discovered exit to Research (range 15) 47008 | -3/Quarantine | Entered Research 47008 | -2/Research | Accompanied by 1 ally 47008 | -2/Research | Evolved 2 slots: Utility x2 47118 | -2/Research | Build established: Scavenger-Mutant 47368 | -2/Research | Incoming investigation squad redirected 47633 | -2/Research | Identified exit to Testing 47824 | -2/Research | Build established: Mutant 47941 | -2/Research | Entered Testing 47941 | -2/Testing | Accompanied by 1 ally 48014 | -2/Testing | Found Prototype Protection 48015 | -2/Testing | Identified Lgt. Regenerative Plating 48021 | -2/Testing | Found Prototype Protection 48021 | -2/Testing | Identified Hvy. Regenerative Plating 48026 | -2/Testing | Found Prototype Protection 48026 | -2/Testing | Identified SHELL Armor 48197 | -2/Testing | Found Prototype Processor 48283 | -2/Testing | Identified Exp. Targeting Computer 48456 | -2/Testing | Found Prototype Energy Cannon 48460 | -2/Testing | Identified Potential Cannon 48463 | -2/Testing | Found Prototype Energy Cannon 48541 | -2/Testing | Identified Imp. Potential Cannon 48557 | -2/Testing | Discovered new exit (range 14) 48576 | -2/Testing | Identified exit to Access 48653 | -2/Testing | Found Prototype Energy Cannon 48654 | -2/Testing | Identified Cld. Nova Cannon 49154 | -2/Testing | Found Prototype Device 49155 | -2/Testing | Identified Exp. Transmission Jammer 49254 | -2/Testing | Spotted Fortress 49379 | -2/Testing | Discovered new exit (range 6) 49385 | -2/Testing | Identified exit to Section 7 49392 | -2/Testing | Entered Section 7 49393 | -2/Section 7 | Sensed 23 artifacts in vicinity 49416 | -2/Section 7 | Found Integrated Reactor 49416 | -2/Section 7 | Installed Integrated Reactor, increased core energy generation (+10) 49618 | -2/Section 7 | Spotted B-90 Cyclops 49640 | -2/Section 7 | Spotted S7 Guard 49661 | -2/Section 7 | Found Integrated Thermoelectric Network 49665 | -2/Section 7 | Installed Integrated Thermoelectric Network, gained heat-energy exchange potential 49736 | -2/Section 7 | Found Integrated Reactor 49737 | -2/Section 7 | Installed Integrated Reactor, increased core energy generation (+10) 49805 | -2/Section 7 | Found Integrated Reactor 49806 | -2/Section 7 | Installed Integrated Reactor, increased core energy generation (+10) 49992 | -2/Section 7 | Build established: Alien-Mutant 50018 | -2/Section 7 | Spotted Executioner 50018 | -2/Section 7 | Spotted Executioner 50042 | -2/Section 7 | Destroyed Executioner 50048 | -2/Section 7 | Destroyed Executioner 50050 | -2/Section 7 | Found Prototype Processor 50054 | -2/Section 7 | Identified Exp. Core Analyzer 50060 | -2/Section 7 | Found Exp. Core Analyzer 50095 | -2/Section 7 | Found Terrabomb 50097 | -2/Section 7 | Found Terrabomb 50127 | -2/Section 7 | Found Transdimensional Reconstructor 50130 | -2/Section 7 | Found Transdimensional Reconstructor 50266 | -2/Section 7 | Found Sigix Sheargun 50268 | -2/Section 7 | Found Sigix Sheargun 50280 | -2/Section 7 | Spotted Striker 50280 | -2/Section 7 | Spotted Striker 50304 | -2/Section 7 | Destroyed Striker 50309 | -2/Section 7 | Destroyed Striker 50322 | -2/Section 7 | Found Sigix Shearcannon 50501 | -2/Section 7 | Spotted B-99 Colossus 50550 | -2/Section 7 | Destroyed B-99 Colossus 50602 | -2/Section 7 | Found Integrity Redistributor 50605 | -2/Section 7 | Found Integrity Redistributor 50663 | -2/Section 7 | Found LRC Energy Well 50664 | -2/Section 7 | Installed LRC Energy Well, increased energy storage capacity (+250) 50667 | -2/Section 7 | Found LRC Energy Well 50667 | -2/Section 7 | Installed LRC Energy Well, increased energy storage capacity (+250) 50729 | -2/Section 7 | Found Core Expander 50899 | -2/Section 7 | Integrated with Sigix Exoskeleton 50907 | -2/Section 7 | Installed Core Expander, added new Weapon slot 51098 | -2/Section 7 | Discovered exit to Access (range 18) 51105 | -2/Section 7 | Entered Access 51105 | -1/Access | Evolved 2 slots: Utility x2 51110 | -1/Access | Emitted hypermatrix ping 51115 | -1/Access | Assembled emerged from beneath the floor 51133 | -1/Access | Discovered new exit (range 17) 51192 | -1/Access | Spotted B-99 Colossus 51192 | -1/Access | Spotted B-99 Colossus 51195 | -1/Access | Entered Command 51198 | -1/Command | Build established: Alien-Sigix 51200 | -1/Command | Emitted hypermatrix ping 51205 | -1/Command | Assembled emerged from beneath the floor 51210 | -1/Command | Discovered new exit (range 18) 51221 | -1/Command | Spotted M Guard 51221 | -1/Command | Spotted M Guard 51234 | -1/Command | Spotted Combat Programmer 51235 | -1/Command | Spotted Combat Programmer 51236 | -1/Command | Destroyed Combat Programmer 51237 | -1/Command | Destroyed Combat Programmer 51272 | -1/Command | Destroyed M Guard 51275 | -1/Command | Destroyed M Guard 51275 | -1/Command | All MAIN.C guards destroyed 51285 | -1/Command | Found Prototype Device 51285 | -1/Command | Identified AEGIS Remote Shield 51288 | -1/Command | Found Prototype Reactor 51288 | -1/Command | Identified Zero-point Reactor 51293 | -1/Command | Found Prototype Launcher 51293 | -1/Command | Identified Adv. Micro-nuke Launcher 51311 | -1/Command | Met MAIN.C 51315 | -1/Command | 0b10 Conduit disabled 51323 | -1/Command | MAIN.C's shell transforms into a squad of autonomous robots 51323 | -1/Command | Destroyed MAIN.C Shell 51323 | -1/Command | Spotted M Shell/Def 51323 | -1/Command | Spotted M Shell/Atk 51323 | -1/Command | Spotted M Shell/Def 51323 | -1/Command | Spotted M Shell/Atk 51323 | -1/Command | Spotted M Shell/Atk 51323 | -1/Command | Spotted M Shell/Def 51323 | -1/Command | Spotted M Shell/Atk 51323 | -1/Command | Spotted M Shell/Def 51324 | -1/Command | MAIN.C activated Command garrisons 51324 | -1/Command | Used Terrabomb 51357 | -1/Command | Destroyed MAIN.C 51359 | -1/Command | Discovered new exit (range 28) 51359 | -1/Command | Discovered new exit (range 108) 51359 | -1/Command | Extracted map data and part IDs from MAIN.C's data core 51362 | -1/Command | Found Zero-point Reactor 51365 | -1/Command | Found Exp. System Purifier 51423 | -1/Command | Destroyed M Shell/Atk 51426 | -1/Command | Destroyed M Shell/Atk 51426 | -1/Command | Destroyed M Shell/Def 51428 | -1/Command | Destroyed M Shell/Def 51429 | -1/Command | Destroyed M Shell/Atk 51432 | -1/Command | Destroyed M Shell/Def 51433 | -1/Command | Destroyed M Shell/Atk 51436 | -1/Command | Found Exp. Core Analyzer 51438 | -1/Command | Found Zero-point Reactor 51440 | -1/Command | Found Null Cannon 51454 | -1/Command | Destroyed 7 combat bots 52238 | -1/Command | Assembled emerged from beneath the floor 52270 | -1/Command | Assembled emerged from beneath the floor 52329 | -1/Command | Assembled emerged from beneath the floor 52595 | -1/Command | Assembled emerged from beneath the floor 52608 | -1/Command | Found Quantum Capacitor 52671 | -1/Command | Warped through subspace to slip node 52671 | -1/Command | Discovered new exit (range 5) 52676 | -1/Command | Entered Access_0 52677 | -1/Access_0 | Sensed 3 artifacts in vicinity 52677 | -1/Access_0 | Met Architect 52678 | -1/Access_0 | Architect warped through subspace 52679 | -1/Access_0 | Destroyed A8 52702 | -1/Access_0 | Architect warped through subspace 52714 | -1/Access_0 | Found Core Regenerator 52718 | -1/Access_0 | Architect warped through subspace 52732 | -1/Access_0 | Subspace Access Node disabled 52738 | -1/Access_0 | Subspace Access Node disabled 52740 | -1/Access_0 | A6 warped into view 52744 | -1/Access_0 | Destroyed A6 52749 | -1/Access_0 | Architect warped through subspace 52765 | -1/Access_0 | Found Core Expander 52765 | -1/Access_0 | Installed Core Expander, added new Weapon slot 52777 | -1/Access_0 | Architect warped through subspace 52790 | -1/Access_0 | Subspace Access Node disabled 52791 | -1/Access_0 | Architect warped through subspace 52800 | -1/Access_0 | Subspace Access Node disabled 52809 | -1/Access_0 | A5 warped into view 52813 | -1/Access_0 | Destroyed A5 52856 | -1/Access_0 | Destroyed A2 52857 | -1/Access_0 | Extracted Singularity Gate Test 138-C access codes from A2's data core 52867 | -1/Access_0 | Singularity Gate disabled 52867 | -1/Access_0 | Singularity Gate disabled 52880 | -1/Access_0 | Destroyed Architect 52881 | -1/Access_0 | Extracted unknown sensor trigger ID from Architect's data core 52881 | -1/Access_0 | Used Core Regenerator, restored core integrity (+400) 52885 | -1/Access_0 | Found Prototype Protection 52887 | -1/Access_0 | Identified Centrium Linked Plating 52889 | -1/Access_0 | Found Prototype Hackware 52889 | -1/Access_0 | Identified Architect God Chip D 52891 | -1/Access_0 | Found Prototype Hackware 52891 | -1/Access_0 | Identified Architect God Chip A 52895 | -1/Access_0 | Found Hpw. Transdimensional Reconstructor 52905 | -1/Access_0 | Destroyed 12 combat bots 52915 | -1/Access_0 | Found Prototype Device 52916 | -1/Access_0 | Identified Desublimator 52953 | -1/Access_0 | A4 warped into view 52957 | -1/Access_0 | Destroyed A4 53036 | -1/Access_0 | Destroyed 9 combat bots 53079 | -1/Access_0 | Found Hpw. Transdimensional Reconstructor 53091 | -1/Access_0 | Sigix Exoskeleton integrity reduced to 80% 53120 | -1/Access_0 | A3 warped into view 53126 | -1/Access_0 | Destroyed A3 53128 | -1/Access_0 | Found Prototype Ballistic Gun 53128 | -1/Access_0 | Identified A3's Sniper Rifle 53141 | -1/Access_0 | Warped through subspace to slip node 53141 | -1/Access_0 | Discovered new exit (range 8) 53146 | *** | Heading to fleet! Last Messages --------------- 53124_ Quantum Shear penetrates A3. 53125_ Destroyed Adv. Phase Shifter. 53125_ Quantum Shear penetrates A3. 53125_ Destroyed Lgt. Regenerative Plating. 53126_ Quantum Shear penetrates A3. 53126_ Destroyed Lgt. Particle Reactor. 53126_ A3: "How even..." 53126_ A3 destroyed. 53126_ Quantum Shear penetrates Wall. 53128_ Acquired Prototype Ballistic Gun. 53128_ Identified A3's Sniper Rifle. 53129_ Dropped A3's Sniper Rifle. 53135_ Quantum Shear penetrates Enhanced Hunter. 53135_ Enhanced Hunter destroyed. 53135_ Quantum Shear penetrates Enhanced Hunter. 53135_ Enhanced Hunter destroyed. 53135_ Quantum Shear penetrates Wall. 53136_ Acquired 10 matter. 53141_ Warped through subspace, drawn to slip node. 53141_ EXIT=FOUND Map ----- +----------------------------------------------------+ | | | | | | | | | | | | | | | | | | | | | | | | | | | | | | | | | ???????????#############################?????????? | | ??????????###############################????????? | | ?????????#################################???????? | | ?????????#################################???????? | | ?????????#################################???????? | | ????????###################################??????? | | ????????###################################??????? | | ????????################# #################??????? | | ????????################ ################??????? | | ????????################ X ################??????? | | ???????################# #################?????? | | ???????################ ################??????? | | ???????################ #################??????? | | ???????################# #################?????? | | ???????################ ################??????? | | ???????################ #################??????? | | ??????################# < ################??????? | | ???????################ #################??????? | | ???????################# #################??????? | | ???????###################################???????? | | ???????###################################???????? | | ???????###################################???????? | | ????????#################################????????? | | ????????#################################????????? | | ????????#################################????????? | | ?????????###############################?????????? | | ??????????#############################??????????? | | ??????????#############################??????????? | | ???????????###########################???????????? | | ????????????#########################????????????? | | ?????????????#######################?????????????? | | ???????????????###################???????????????? | | ????????????????#################????????????????? | | ?????????????#?????###########???????????????????? | +----------------------------------------------------+ Best States ------------- Heat Dissipation 142 Energy Generation 105 Energy Capacity 2350 Matter Stores 300 Matter Capacity 300 Sight Range 20 Robot Scan Range 20 Terrain Scan Range 24 Terrain Scan Density 10 Jamming Range 22 Additional Mass Support 20 EM Shielding 3 Corruption Containment 12 Corruption Block 20 Armor Coverage 2000 Resistance: KI 50 Resistance: TH 50 Resistance: EX 50 Resistance: EM 75 Resistance: I 50 Resistance: S 50 Resistance: P 50 Weapon Shielding 100 Weapon Cycling 15 Phase Shifting 8 Evasion (%) 69 Targeting Accuracy 8 Core Analysis 12 Armor Integrity Analysis 50 Recoil Reduction 6 Energy Filtering 30 Kinecelleration 30 Force Boost 30 Offensive Hacking 100 Defensive Hacking 100 Item Schematics ----------------- Diametric Drive | -2/Testing | Archive Exp. Coolant Injector | -2/Testing | Archive Imp. Q-thruster | -2/Section 7 | Archive Centrium Greatsword | -2/Section 7 | Archive Exp. Q-thruster | -2/Section 7 | Archive Com. Tesla Bomb Launcher | -2/Section 7 | Archive Tactical Quantum Warhead | -2/Section 7 | Archive Robot Schematics ------------------ T-07 Excavator | -2/Testing | Archive S-43 Plague | -2/Section 7 | Archive Fabricated ------------ Nothing Alien Tech Used ----------------- Integrated Dissipator Phase Redirector Core Reset Matrix Sigix Broadsword Integrated Reactor Integrated Thermoelectric Network LRC Energy Well Sigix Exoskeleton Sigix Sheargun Sigix Shearcannon Core Expander Terrabomb Transdimensional Reconstructor Core Regenerator High-powered Transdimensional Reconstructor Achievements -------------- None Challenges ------------ None Game ------ Seed PhysicsLightningDatajack Manual? 0 Play Time 10:10:23 Cumulative 496.9 hours Start 2023.05.20 @ 10:44:42 End 2023.08.07 @ 12:34:59 Sessions 47 Manual Loads 0 Difficulty Rogue Special Mode None Game No. 91 Rogue 84 Adventurer 1 Explorer 6 Win Type 2 Total 38 Types 11/3/13/1/1/1/6/1/1 Lore% 92 Gallery% 92 Achievement% 83 Wizard Run 0 Options --------- ASCII 0 Keyboard 0 Movement Mouse Keybinds 0 Fullscreen 1 Font 18/SmallcapsGlow Map View 76x50 Tactical HUD 1 Map Filters NONE Filters NONE Steam 1 RUN: 8d63e489-9207-41af-a372-d1fec44ac5a1